{"text_format":"1","workbook":"xlsx","n_sheets":20,"sheets":["RANKING 2017","CAMPEONES 2017","SUPER CHASQUI","EQUIPOS","ELITE ABIERTA","ELITE JUVENIL","ELITE MENORES","ELITE CABALLOS","AMATEUR ABIERTA","AMATEUR JUVENIL","AMATEUR MENORES","CABALLOS NOVICIOS","BINOMIOS ABIERTA","BINOMIOS LIVIANOS","PR MASTER","PR ABIERTA","PR JUVENIL","PR MENORES","PR INFANTIL","PR ADULTO-MENOR"],"not_rendered":{"charts":0,"images":0,"macros":1,"external_links":0,"defined_names":137,"comments":0,"pivot_tables":0},"unopened":[],"bounds":{"document_bytes":16777216,"sheet_cells":100000,"rows_first":2000,"rows_last":500,"rows_between":2000,"halvings":0,"cell_chars":16384,"cell_head_chars":4096},"cells_cut":0,"cells_raw":0,"read":"whole","date_system":"1900"}

{"sheet":"RANKING 2017","index":0,"n_rows":120,"n_cols":11,"rows_kept":120,"cut":false,"hidden":false,"merged":[[97,0,97,3],[113,0,113,3],[3,5,3,10],[2,0,2,10],[0,0,0,10],[105,0,105,3],[33,0,33,4],[8,0,8,3],[16,0,16,3],[25,0,25,4],[65,0,65,3],[73,0,73,4],[49,0,49,3],[57,0,57,3],[41,0,41,4],[81,0,81,3],[89,0,89,3]]}
["                                                  RANKING NACIONAL DE ENDURANCE ECUADOR 2015"]
[]
["CAMPEONATO DE EQUIPOS                                        "]
[null,null,"EQUIPO","CAPITAN","PUNTAJE","               JINETES"]
[1,"CAMPEÓN NACIONAL",{"$f":"+EQUIPOS!C8","v":"ENDURANCE AZUAY"},{"$f":"+EQUIPOS!D8","v":"MARIA CONSUELO VELEZ "},{"$f":"+EQUIPOS!U8","v":2922.57},{"$f":"+EQUIPOS!E8","v":"PABLO VINTIMILLA"},{"$f":"+EQUIPOS!F8","v":"BERNARDA GONZALEZ"},{"$f":"+EQUIPOS!G8","v":"CLAUDIA LOYOLA"},{"$f":"+EQUIPOS!H8","v":"HECTOR ALMEIDA"},{"$f":"+EQUIPOS!I8","v":"JOSE ANDRADE"},{"$f":"+EQUIPOS!J8","v":"MARIA CONSUELO VELEZ "}]
[2,"VICECAMPEÓN NACIONAL",{"$f":"+EQUIPOS!C9","v":"SELECT"},{"$f":"+EQUIPOS!D9","v":"ARMANDO SERRANO"},{"$f":"+EQUIPOS!U9","v":1117.08},{"$f":"+EQUIPOS!E9","v":"MANUELA JARAMILLO"},{"$f":"+EQUIPOS!F9","v":"BERNARDA LETORT"},{"$f":"+EQUIPOS!G9","v":"JOSE LETORT MENA"},{"$f":"+EQUIPOS!H9","v":"ARMANDO SERRANO"},{"$f":"+EQUIPOS!I9","v":"LUIS MASAPANTA"},{"$f":"+EQUIPOS!J9","v":"MARIO CANDO"}]
[3,null,{"$f":"+EQUIPOS!C10","v":"EQUINOCCIAL"},{"$f":"+EQUIPOS!D10","v":"BERNARDO DARQUEA"},{"$f":"+EQUIPOS!U10","v":861.08400000000006},{"$f":"+EQUIPOS!E10","v":0},{"$f":"+EQUIPOS!F10","v":0},{"$f":"+EQUIPOS!G10","v":"RECALDE JUAN JOSE"},{"$f":"+EQUIPOS!H10","v":"DARQUEA RICARDO"},{"$f":"+EQUIPOS!I10","v":"DARQUEA GABRIEL"},{"$f":"+EQUIPOS!J10","v":"DARQUEA ANDRES"}]
[]
["CATEGORÍA ELITE ABIERTA        "]
[null,null,"JINETE","PUNTAJE"]
[1,"CAMPEÓN NACIONAL",{"$f":"+'ELITE ABIERTA'!D8","v":"ALMEIDA AYALA HECTOR"},{"$f":"+'ELITE ABIERTA'!O8","v":1152.77}]
[2,"VICECAMPEÓN NACIONAL",{"$f":"+'ELITE ABIERTA'!D9","v":"LOYOLA MARIA CLAUDIA"},{"$f":"+'ELITE ABIERTA'!O9","v":828.82400000000007}]
[3,null,{"$f":"+'ELITE ABIERTA'!D10","v":"MORABOWEN CESAR"},{"$f":"+'ELITE ABIERTA'!O10","v":689.59999999999991}]
[4,null,{"$f":"+'ELITE ABIERTA'!D11","v":"ESTRADA CARLOS"},{"$f":"+'ELITE ABIERTA'!O11","v":669.42399999999998}]
[5,null,{"$f":"+'ELITE ABIERTA'!D12","v":"VELEZ MARIA CONSUELO"},{"$f":"+'ELITE ABIERTA'!O12","v":576.20000000000005}]
[]
["CATEGORÍA ELITE JUVENIL       "]
[null,null,"JINETE","PUNTAJE"]
[1,"CAMPEÓN NACIONAL",{"$f":"+'ELITE JUVENIL'!D8","v":"GONZALEZ BERNARDA"},{"$f":"+'ELITE JUVENIL'!O8","v":964}]
[2,"VICECAMPEÓN NACIONAL",{"$f":"+'ELITE JUVENIL'!D9","v":"JARAMILLO MANUELA"},{"$f":"+'ELITE JUVENIL'!O9","v":597.17999999999995}]
[3,null,{"$f":"+'ELITE JUVENIL'!D10","v":"MORABOWEN MOSQUERA CESAR"},{"$f":"+'ELITE JUVENIL'!O10","v":542.16}]
[4,null,{"$f":"+'ELITE JUVENIL'!D11","v":"DARQUEA RICARDO"},{"$f":"+'ELITE JUVENIL'!O11","v":355.68}]
[5,null,{"$f":"+'ELITE JUVENIL'!D12","v":"LOYOLA TEODORO ANDRES"},{"$f":"+'ELITE JUVENIL'!O12","v":208}]
[]
[]
["CATEGORÍA ELITE CABALLOS     "]
[null,null,"JINETE","JINETE/DUEÑO","PUNTAJE"]
[1,"CAMPEÓN NACIONAL",{"$f":"+'ELITE CABALLOS'!D8","v":"ASRAEL"},{"$f":"+'ELITE CABALLOS'!E8","v":"BERNARDO GONZALEZ"},{"$f":"+'ELITE CABALLOS'!P8","v":563.4}]
[2,"VICECAMPEÓN NACIONAL",{"$f":"+'ELITE CABALLOS'!D9","v":"AMARETO"},{"$f":"+'ELITE CABALLOS'!E9","v":"LETORT BERNARDA"},{"$f":"+'ELITE CABALLOS'!P9","v":542.57999999999993}]
[3,null,{"$f":"+'ELITE CABALLOS'!D10","v":"KAFIR HA"},{"$f":"+'ELITE CABALLOS'!E10","v":"HECTOR ALMEIDA AYALA"},{"$f":"+'ELITE CABALLOS'!P10","v":491.16}]
[4,null,{"$f":"+'ELITE CABALLOS'!D11","v":"CALEÑA CMB"},{"$f":"+'ELITE CABALLOS'!E11","v":"MORABOWEN CESAR"},{"$f":"+'ELITE CABALLOS'!P11","v":488.4}]
[5,null,{"$f":"+'ELITE CABALLOS'!D12","v":"SC SADIQ"},{"$f":"+'ELITE CABALLOS'!E12","v":"HECTOR ALMEIDA AYALA"},{"$f":"+'ELITE CABALLOS'!P12","v":450.2}]
[]
["CATEGORÍA BINOMIOS  ABIERTA"]
[null,null,"JINETE","CABALLO","PUNTAJE"]
[1,"CAMPEÓN NACIONAL",{"$f":"+'BINOMIOS ABIERTA'!D8","v":"ESTRADA CARLOS"},{"$f":"+'BINOMIOS ABIERTA'!F8","v":"SC SHADID"},{"$f":"+'BINOMIOS ABIERTA'!Q8","v":538.22400000000005}]
[2,"VICECAMPEÓN NACIONAL",{"$f":"+'BINOMIOS ABIERTA'!D9","v":"LOYOLA CLAUDIA MARIA"},{"$f":"+'BINOMIOS ABIERTA'!F9","v":"PATACON"},{"$f":"+'BINOMIOS ABIERTA'!Q9","v":498.6}]
[3,null,{"$f":"+'BINOMIOS ABIERTA'!D10","v":"ALMEIDA AYALA HECTOR "},{"$f":"+'BINOMIOS ABIERTA'!F10","v":"AVENTURERO"},{"$f":"+'BINOMIOS ABIERTA'!Q10","v":403.6}]
[4,null,{"$f":"+'BINOMIOS ABIERTA'!D11","v":"ALMEIDA AYALA HECTOR "},{"$f":"+'BINOMIOS ABIERTA'!F11","v":"KAFIR HA"},{"$f":"+'BINOMIOS ABIERTA'!Q11","v":375.96000000000004}]
[5,null,{"$f":"+'BINOMIOS ABIERTA'!D12","v":"NOBOA MAURICIO"},{"$f":"+'BINOMIOS ABIERTA'!F12","v":"LIA"},{"$f":"+'BINOMIOS ABIERTA'!Q12","v":363.5}]
[]
["CATEGORÍA BINOMIOS LIVIANOS"]
[null,null,"JINETE","CABALLO","PUNTAJE"]
[1,"CAMPEÓN NACIONAL",{"$f":"+'BINOMIOS LIVIANOS'!D8","v":"GONZALEZ BERNARDA"},{"$f":"+'BINOMIOS LIVIANOS'!F8","v":"ASRAEL"},{"$f":"+'BINOMIOS LIVIANOS'!Q8","v":563.4}]
[2,"VICECAMPEÓN NACIONAL",{"$f":"+'BINOMIOS LIVIANOS'!D9","v":"MORABOWEN MOSQUERA CESAR"},{"$f":"+'BINOMIOS LIVIANOS'!F9","v":"CALEÑA CMB"},{"$f":"+'BINOMIOS LIVIANOS'!Q9","v":545.52}]
[3,null,{"$f":"+'BINOMIOS LIVIANOS'!D10","v":"RICARDO DARQUEA"},{"$f":"+'BINOMIOS LIVIANOS'!F10","v":"NABU"},{"$f":"+'BINOMIOS LIVIANOS'!Q10","v":283.904}]
[4,null,{"$f":"+'BINOMIOS LIVIANOS'!D11","v":"GONZALES BERNARDA"},{"$f":"+'BINOMIOS LIVIANOS'!F11","v":"POLACO"},{"$f":"+'BINOMIOS LIVIANOS'!Q11","v":240.4}]
[5,null,{"$f":"+'BINOMIOS LIVIANOS'!D12","v":"MANUELA JARAMILLO"},{"$f":"+'BINOMIOS LIVIANOS'!F12","v":"AMARETO"},{"$f":"+'BINOMIOS LIVIANOS'!Q12","v":228.38}]
[]
["CATEGORÍA AMATEUR ABIERTA        "]
[null,null,"JINETE","PUNTAJE"]
[1,"CAMPEÓN NACIONAL",{"$f":"+'AMATEUR ABIERTA'!D8","v":"JUNE TATE"},{"$f":"+'AMATEUR ABIERTA'!O8","v":359.76}]
[2,"VICECAMPEÓN NACIONAL",{"$f":"+'AMATEUR ABIERTA'!D9","v":"DIEGO CASTILLO"},{"$f":"+'AMATEUR ABIERTA'!O9","v":332.55999999999995}]
[3,null,{"$f":"+'AMATEUR ABIERTA'!D10","v":"GONZALEZ XIMENA "},{"$f":"+'AMATEUR ABIERTA'!O10","v":260.02}]
[4,null,{"$f":"+'AMATEUR ABIERTA'!D11","v":"MONCAYO DANILO"},{"$f":"+'AMATEUR ABIERTA'!O11","v":235.68}]
[5,null,{"$f":"+'AMATEUR ABIERTA'!D12","v":"FALCONI FRANCISCO"},{"$f":"+'AMATEUR ABIERTA'!O12","v":129.28}]
[]
["CATEGORÍA AMATEUR JUVENIL"]
[null,null,"JINETE","PUNTAJE"]
[1,"CAMPEÓN NACIONAL",{"$f":"+'AMATEUR JUVENIL'!D8","v":"MASAPANTA LUIS"},{"$f":"+'AMATEUR JUVENIL'!O8","v":195.52000000000004}]
[2,"VICECAMPEÓN NACIONAL",{"$f":"+'AMATEUR JUVENIL'!D9","v":"PEREZ SANDRO"},{"$f":"+'AMATEUR JUVENIL'!O9","v":137.6}]
[3,null,{"$f":"+'AMATEUR JUVENIL'!D10","v":"ANDRES DARQUEA"},{"$f":"+'AMATEUR JUVENIL'!O10","v":129.28}]
[4,null,{"$f":"+'AMATEUR JUVENIL'!D11","v":"CALERO MARIA ISABEL "},{"$f":"+'AMATEUR JUVENIL'!O11","v":122.47999999999999}]
[5,null,{"$f":"+'AMATEUR JUVENIL'!D12","v":"DARQUEA GABRIEL"},{"$f":"+'AMATEUR JUVENIL'!O12","v":122.32}]
[]
["CATEGORÍA AMATEUR MENORES     "]
[null,null,"JINETE","PUNTAJE"]
[1,"CAMPEÓN NACIONAL",{"$f":"+'AMATEUR MENORES'!D8","v":"ANDRADE FELIPE ANDRES"},{"$f":"+'AMATEUR MENORES'!O8","v":231.8}]
[2,"VICECAMPEÓN NACIONAL",{"$f":"+'AMATEUR MENORES'!D9","v":"LOPEZ JUAN RAFAEL"},{"$f":"+'AMATEUR MENORES'!O9","v":130.4}]
[3,null,{"$f":"+'AMATEUR MENORES'!D10","v":"DONOSO JULIAN"},{"$f":"+'AMATEUR MENORES'!O10","v":83.41}]
[4,null,{"$f":"+'AMATEUR MENORES'!D11","v":0},{"$f":"+'AMATEUR MENORES'!O11","v":0}]
[5,null,{"$f":"+'AMATEUR MENORES'!D12","v":0},{"$f":"+'AMATEUR MENORES'!O12","v":0}]
[]
["CATEGORÍA NOVICIOS CABALLOS      "]
[null,null,"JINETE","JINETE/DUEÑO","PUNTAJE"]
[1,"CAMPEÓN NACIONAL",{"$f":"+'CABALLOS NOVICIOS'!D8","v":"LIA"},{"$f":"+'CABALLOS NOVICIOS'!E8","v":"MAURICIO NOBOA"},{"$f":"+'CABALLOS NOVICIOS'!P8","v":363.5}]
[2,"VICECAMPEÓN NACIONAL",{"$f":"+'CABALLOS NOVICIOS'!D9","v":"GS RASHID"},{"$f":"+'CABALLOS NOVICIOS'!E9","v":"DIEGO CASTILLO"},{"$f":"+'CABALLOS NOVICIOS'!P9","v":332.55999999999995}]
[3,null,{"$f":"+'CABALLOS NOVICIOS'!D10","v":"MARAVILLA"},{"$f":"+'CABALLOS NOVICIOS'!E10","v":"HECTOR ALMEIDA AYALA"},{"$f":"+'CABALLOS NOVICIOS'!P10","v":260.72000000000003}]
[4,null,{"$f":"+'CABALLOS NOVICIOS'!D11","v":"BERNARDA"},{"$f":"+'CABALLOS NOVICIOS'!E11","v":"XIMENA GONZALEZ"},{"$f":"+'CABALLOS NOVICIOS'!P11","v":256.57600000000002}]
[5,null,{"$f":"+'CABALLOS NOVICIOS'!D12","v":"GH ROSCO"},{"$f":"+'CABALLOS NOVICIOS'!E12","v":"PABLO VINTIMILLA"},{"$f":"+'CABALLOS NOVICIOS'!P12","v":249.60000000000002}]
[]
["CATEGORÍA PROMOCIONAL ABIERTA"]
[null,null,"JINETE","PUNTAJE"]
[1,"CAMPEÓN NACIONAL",{"$f":"+'PR ABIERTA'!D8","v":"CORO RODRIGO"},{"$f":"+'PR ABIERTA'!O8","v":196.07999999999998}]
[2,"VICECAMPEÓN NACIONAL",{"$f":"+'PR ABIERTA'!D9","v":"MONCAYO FERNANDO"},{"$f":"+'PR ABIERTA'!O9","v":113.52}]
[3,null,{"$f":"+'PR ABIERTA'!D10","v":"CONTRERAS JONATHAN"},{"$f":"+'PR ABIERTA'!O10","v":97.36}]
[4,null,{"$f":"+'PR ABIERTA'!D11","v":"TORRES JHONATHAN"},{"$f":"+'PR ABIERTA'!O11","v":94.16}]
[5,null,{"$f":"+'PR ABIERTA'!D12","v":"HIDALGO GUSTAVO"},{"$f":"+'PR ABIERTA'!O12","v":68.8}]
[]
["CATEGORÍA PROMOCIONAL JUVENIL"]
[null,null,"JINETE","PUNTAJE"]
[1,"CAMPEÓN NACIONAL",{"$f":"+'PR JUVENIL'!D8","v":"NOROÑA JORDAN"},{"$f":"+'PR JUVENIL'!O8","v":68.8}]
[2,"VICECAMPEÓN NACIONAL",{"$f":"+'PR JUVENIL'!D9","v":"GABRIEL DARQUEA"},{"$f":"+'PR JUVENIL'!O9","v":68.8}]
[3,null,{"$f":"+'PR JUVENIL'!D10","v":"BARBARA ESPINOZA"},{"$f":"+'PR JUVENIL'!O10","v":65.36}]
[4,null,{"$f":"+'PR JUVENIL'!D11","v":"JHON CANDELEJO"},{"$f":"+'PR JUVENIL'!O11","v":32}]
[5,null,{"$f":"+'PR JUVENIL'!D12","v":0},{"$f":"+'PR JUVENIL'!O12","v":0}]
[]
["CATEGORÍA PROMOCIONAL MENORES"]
[null,null,"JINETE","PUNTAJE"]
[1,"CAMPEÓN NACIONAL",{"$f":"+'PR MENORES'!D8","v":"CORREA JUAN MARTIN"},{"$f":"+'PR MENORES'!O8","v":60.8}]
[2,"VICECAMPEÓN NACIONAL",{"$f":"+'PR MENORES'!D9","v":"ESPINOZA NATALIA"},{"$f":"+'PR MENORES'!O9","v":58.176000000000002}]
[3,null,{"$f":"+'PR MENORES'!D10","v":"CASTILLO DAFNE"},{"$f":"+'PR MENORES'!O10","v":32}]
[4]
[5]
[]
["CATEGORÍA PROMOCIONAL INFANTIL"]
[null,null,"JINETE","PUNTAJE"]
[1,"CAMPEÓN NACIONAL",{"$f":"+'PR INFANTIL'!D8","v":"DARQUEA EMILIO"},{"$f":"+'PR INFANTIL'!O8","v":131.19999999999999}]
[2,"VICECAMPEÓN NACIONAL",{"$f":"+'PR INFANTIL'!D9","v":"MOYA MARTINA "},{"$f":"+'PR INFANTIL'!O9","v":67.2}]
[3,null,{"$f":"+'PR INFANTIL'!D10","v":"JULIAN NOBOA"},{"$f":"+'PR INFANTIL'!O10","v":64}]
[4,null,{"$f":"+'PR INFANTIL'!D11","v":0},{"$f":"+'PR INFANTIL'!O11","v":0}]
[5]
[]
["CATEGORÍA PROMOCIONAL ADULTO/MENOR"]
[null,null,"MENOR","PUNTAJE"]
[1,"CAMPEÓN NACIONAL",{"$f":"+'PR ADULTO-MENOR'!C8","v":"CASTILLO DAFNE"},{"$f":"+'PR ADULTO-MENOR'!O8","v":64.64}]
[2,"VICECAMPEÓN NACIONAL",{"$f":"+'PR ADULTO-MENOR'!C9","v":"SERRANO OLIVIA"},{"$f":"+'PR ADULTO-MENOR'!O9","v":63.183999999999997}]
[3,null,{"$f":"+'PR ADULTO-MENOR'!C10","v":"JARA RAFAELA"},{"$f":"+'PR ADULTO-MENOR'!O10","v":32.32}]
[4,null,{"$f":"+'PR ADULTO-MENOR'!C11","v":"MOYA MARTINA"},{"$f":"+'PR ADULTO-MENOR'!O11","v":32}]
[5,null,{"$f":"+'PR ADULTO-MENOR'!C12","v":"CORREA DAVID"},{"$f":"+'PR ADULTO-MENOR'!O12","v":29.231999999999999}]

{"sheet":"CAMPEONES 2017","index":1,"n_rows":52,"n_cols":5,"rows_kept":52,"cut":false,"hidden":false,"merged":[[1,1,1,4],[3,1,3,4],[41,1,41,4],[47,1,47,4],[10,1,10,4],[16,1,16,4],[22,1,22,4],[29,1,29,4],[35,1,35,4]]}
[]
[null,"CAMPEONATO ECUATORIANO DE ENDURANCE"]
[]
[null,"CATEGORÍA ELITE ABIERTA  CHASQUI 3"]
[null,null,null,"JINETE","CABALLO"]
[null,1,"CAMPEÓN NACIONAL","ALMEIDA HECTOR","AVENTURERO"]
[null,2,"VICECAMPEÓN NACIONAL"]
[null,3]
[null,4]
[]
[null,"CATEGORÍA ELITE JUVENIL  CHASQUI 3"]
[null,null,null,"JINETE","CABALLO"]
[null,1,"CAMPEÓN NACIONAL","GONZALEZ BERNARDA","ASRAEL"]
[null,2,"VICECAMPEÓN NACIONAL"]
[null,3]
[]
[null,"CATEGORÍA ELITE ABIERTA  CHASQUI 2"]
[null,null,null,"JINETE","CABALLO"]
[null,1,"CAMPEÓN NACIONAL"]
[null,2,"VICECAMPEÓN NACIONAL"]
[null,3]
[]
[null,"CATEGORÍA ELITE JUVENIL  CHASQUI 2"]
[null,null,null,"JINETE","CABALLO"]
[null,1,"CAMPEÓN NACIONAL","MORABOWEN MOSQUERA CESAR","CALEÑA CMB"]
[null,2,"VICECAMPEÓN NACIONAL"]
[null,3]
[]
[]
[null,"CATEGORÍA  ABIERTA CHASQUI 1"]
[null,null,null,"JINETE","CABALLO"]
[null,1,"CAMPEÓN NACIONAL","LOYOLA MARIA CLAUDIA","PATACON"]
[null,2,"VICECAMPEÓN NACIONAL"]
[null,3]
[]
[null,"CATEGORÍA MENORES  CHASQUI 1"]
[null,null,null,"JINETE","CABALLO"]
[null,1,"CAMPEÓN NACIONAL","ANDRADE FELIPE ANDRES","SHAKIRA"]
[null,2,"VICECAMPEÓN NACIONAL"]
[null,3]
[]
[null,"CATEGORÍA  ABIERTA  CHASQUI 1"]
[null,null,null,"JINETE","CABALLO"]
[null,1,"CAMPEÓN NACIONAL"]
[null,2,"VICECAMPEÓN NACIONAL"]
[null,3]
[]
[null,"CATEGORÍA JUVENIL  CHASQUI 1"]
[null,null,null,"JINETE","CABALLO"]
[null,1,"CAMPEÓN NACIONAL"]
[null,2,"VICECAMPEÓN NACIONAL"]
[null,3]

{"sheet":"SUPER CHASQUI","index":2,"n_rows":115,"n_cols":5,"rows_kept":115,"cut":false,"hidden":false,"merged":[[1,2,1,4],[43,1,43,3],[49,1,49,3],[72,1,72,4],[100,1,100,4],[3,1,3,3],[9,1,9,3],[15,1,15,3],[21,1,21,3],[37,1,37,4]]}
[]
[null,null,"PREMIO SUPER CHASQUI DE ENDURANCE"]
[]
[null,"SUPER CHASQUI 3 JINETES (3000 Km)"]
[null,null,"JINETE"]
[null,1,"ALMEIDA AYALA HECTOR",3732]
[null,2,"ANDRADE JOSE DANIEL",3055]
[null,3]
[]
[null,"SUPER CHASQUI 3 CABALLOS"]
[null,null,"JINETE","CABALLO"]
[null,1]
[null,2]
[null,3]
[]
[null,"SUPER CHASQUI 3 BINOMIOS"]
[null,null,"JINETE","CABALLO"]
[null,1]
[null,2]
[null,3]
[]
[null,"SUPER CHASQUI 2 JINETES (2000 Km)"]
[null,null,"JINETE","KILOMETRAJE"]
[null,null,"RIBADENEIRA SOFIA",2967]
[null,null,"WEEMAELS NATHALIE",2957]
[null,null,"GONZALEZ BERNARDA",2944]
[null,null,"LETORT DUEÑAS BERNARDA",2546]
[null,null,"RECALDE JUAN JOSE",2353]
[null,null,"MORILLO MAURICIO",2232]
[null,null,"MORABOWEN CESAR",2209]
[null,null,"RIBADENEIRA ARTURO",2190]
[null,null,"NEUMANN KARINA",2108]
[null,null,"GOMEZ MICHILENA ALEXANDER",2085]
[null,null,"LOYOLA VINTIMILLA MARIA CLAUDIA",2020]
[]
[]
[]
[null,"SUPER CHASQUI 2 CABALLOS  (2000 Km)"]
[null,null,"JINETE","PROPIETARIO/JINETE","KILOMETRAJE"]
[null,1,"AR FAISAN","ARTURO RIBADENEIRA",2117]
[null,2]
[null,3]
[]
[null,"SUPER CHASQUI 2 BINOMIOS  (2000 Km)"]
[null,null,"JINETE","KILOMETRAJE"]
[null,1]
[null,2]
[null,3]
[]
[null,"SUPER CHASQUI 1 JINETES (1000 Km)"]
[null,null,"JINETE","KILOMETRAJE"]
[null,1,"DARQUEA RAFAELA",1980]
[null,2,"VINTIMILLA SERRANO PABLO XAVIER",1955]
[null,3,"GUARDERAS BARAHONA SEBASTIAN",1943]
[null,4,"NOBOA MAURICIO",1672]
[null,5,"SERRANO VALLEJO FELIPE",1579]
[null,6,"MORENO CORDOVEZ DANIELA",1496]
[null,7,"VELEZ MENA MARIA CONSUELO",1489]
[null,8,"WRAY VINUEZA MATEO",1474]
[null,9,"MONROY BAROJA MARIA FERNANDA",1444]
[null,10,"DARQUEA BERNARDO",1443]
[null,11,"KOPPEL OSWALDO",1408]
[null,12,"CORNEJO BURNEO MANUEL",1298]
[null,13,"CANDO MARIO",1296]
[null,14,"MORILLO SERGIO",1247]
[null,15,"DAVILA GORDILLO JUAN DIEGO",1115]
[null,16,"DARQUEA RICARDO",1084]
[null,17,"LETORT MENA JOSE",1032]
[null,18]
[null,19]
[null,20]
[]
[null,"SUPER CHASQUI 1 CABALLOS  (1000 Km)"]
[null,null,"JINETE","PROPIETARIO/JINETE","KILOMETRAJE"]
[null,1,"ANGOSTURA FRODO","RIBADENEIRA ARTURO",1970]
[null,2,"CENTAURO","HECTOR ALMEIDA",1916]
[null,3,"FHARA CONEJA","DARQUEA BERNARDO",1807]
[null,4,"BOM BOM","JUAN JOSE RECALDE",1676]
[null,5,"CG ALLASKI","WEEMAELS NATHALIE",1604]
[null,6,"MISTERIO","MORILLO MAURICIO",1572]
[null,7,"QUITA PENAS","ILIANA RUIZ",1419]
[null,8,"PATACON","LOYOLA VINTIMILLA MARIA CLAUDIA",1364]
[null,9,"AMARETO","JOSE LETORT",1239]
[null,10,"ASRAEL","BERNARDA GONZALEZ",1222]
[null,11,"KAFIR HA","HECTOR ALMEIDA",1219]
[null,12,"WISKY","MAURICIO NOBOA",1137]
[null,13,"SERENATA CMB","CÉSAR MORABOWEN",1091]
[null,14,"AVENTURERO","HECTOR ALMEIDA",1062]
[null,15,"SHAKIRA","LETORT JOSE IGNACIO",1023]
[null,16,"TRUENO","DARQUEA BERNARDO",1011]
[null,17]
[null,18]
[null,19]
[null,20]
[null,21]
[null,22]
[null,23]
[null,24]
[null,25]
[]
[null,"SUPER CHASQUI 1 BINOMIOS  (1000 Km)"]
[null,null,"JINETE","CABALLO","KILOMETRAJE"]
[null,1,"HECTOR ALMEIDA","CENTAURO",1670]
[null,2,"WEEMAELS NATHALIE","CG ALLASKI",1600]
[null,3,"MORILLO MAURICIO","MISTERIO",1458]
[null,4,"DARQUEA BERNARDO","FHARA CONEJA",1362]
[null,5,"RIBADENEIRA SOFIA","AR FAISAN",1261]
[null,6,"LOYOLA VINTIMILLA MARIA CLAUDIA","PATACON",1115]
[null,7]
[null,8]
[null,9]
[null,10]
[null,11]
[null,12]
[null,13]

{"sheet":"EQUIPOS","index":3,"n_rows":23,"n_cols":41,"rows_kept":23,"cut":false,"hidden":false,"merged":[[1,1,1,20],[6,4,6,9],[4,1,4,9],[4,10,4,20],[5,10,5,20],[2,1,2,20]]}
[]
[null,"                                                      PUNTAJE  ACUMULADO"]
[null,"                                                                   EQUIPOS"]
[]
[null,"EQUIPOS",null,null,null,null,null,null,null,null,"PUNTAJES"]
[null,null,null,null,null,null,null,null,null,null,2017]
[null,null,"EQUIPO","CAPITAN","               JINETES",null,null,null,null,null,"I CHONE","II CHONE","III CHONE","IV CHONE","V CHONE","VI CHONE","VII CHONE","VIII CHONE","IX CHONE","X CHONE","ACUMULADO"]
[null,1,"ENDURANCE AZUAY","MARIA CONSUELO VELEZ ","PABLO VINTIMILLA","BERNARDA GONZALEZ","CLAUDIA LOYOLA","HECTOR ALMEIDA","JOSE ANDRADE","MARIA CONSUELO VELEZ ",416,null,585.08000000000004,440.1,null,448.4,null,472.59,null,{"$f":"240.2+240.2+80","v":560.4},{"$f":"SUM(K8:T8)","v":2922.57}]
[null,2,"SELECT","ARMANDO SERRANO","MANUELA JARAMILLO","BERNARDA LETORT","JOSE LETORT MENA","ARMANDO SERRANO","LUIS MASAPANTA","MARIO CANDO",null,362.88,null,null,null,null,490.2,264,null,null,{"$f":"SUM(K9:T9)","v":1117.08}]
[null,3,"EQUINOCCIAL","BERNARDO DARQUEA",null,null,"RECALDE JUAN JOSE","DARQUEA RICARDO","DARQUEA GABRIEL","DARQUEA ANDRES",null,null,352.22,null,215.82400000000001,null,null,293.04000000000002,null,null,{"$f":"SUM(K10:T10)","v":861.08400000000006},null,null,null,null,null,null,null,null,null,null,null,null,null,null,null,null,null,null,{"$f":"+$U$8-U9","v":1805.4900000000002},{"$f":"VLOOKUP(B10,#REF!,3,FALSE)","v":{"$error":"#REF!"}}]
[null,4,"HACIENDA HATO VERDE","CESAR MORABOWEN","MORABOWEN AGUIRRE CESAR ","MORABOWEN MOSQUERA CESAR","MORILLO MAURICIO","DAVALOS JORGE EDUARDO","MORILLO SERGIO","MARÍA ISABEL CALERO",null,null,553.18000000000006,null,null,null,null,null,null,null,{"$f":"SUM(K11:T11)","v":553.18000000000006}]
[null,5,null,null,null,null,null,null,null,null,null,null,null,null,null,null,null,null,null,null,{"$f":"SUM(K12:T12)","v":0}]
[null,6,null,null,null,null,null,null,null,null,null,null,null,null,null,null,null,null,null,null,0]
[null,7,null,null,null,null,null,null,null,null,null,null,null,null,null,null,null,null,null,null,0]
[null,8,null,null,null,null,null,null,null,null,null,null,null,null,null,null,null,null,null,null,0]
[null,9,null,null,null,null,null,null,null,null,null,null,null,null,null,null,null,null,null,null,{"$f":"SUM(K16:T16)","v":0}]
[null,10,null,null,null,null,null,null,null,null,null,null,null,null,null,null,null,null,null,null,0]
[null,11,null,null,null,null,null,null,null,null,null,null,null,null,null,null,null,null,null,null,0]
[null,12,null,null,null,null,null,null,null,null,null,null,null,null,null,null,null,null,null,null,0]
[null,13,null,null,null,null,null,null,null,null,null,null,null,null,null,null,null,null,null,null,0]
[null,14,null,null,null,null,null,null,null,null,null,null,null,null,null,null,null,null,null,null,0]
[null,15,null,null,null,null,null,null,null,null,null,null,null,null,null,null,null,null,null,null,0]
[null,16,null,null,null,null,null,null,null,null,null,null,null,null,null,null,null,null,null,null,0]

{"sheet":"ELITE ABIERTA","index":4,"n_rows":55,"n_cols":15,"rows_kept":55,"cut":false,"hidden":false,"merged":[[5,4,5,14],[4,1,4,3],[4,4,4,14],[1,1,1,14],[2,1,2,14]]}
[]
[null,"PUNTAJE  ACUMULADO"]
[null,"CATEGORÍA ABIERTA ELITE"]
[]
[null,"ELITE ABIERTA",null,null,"PUNTAJES"]
[null,null,null,null,2017]
[null,null,"CODIGO","JINETE","I CHONE","II CHONE","III CHONE","IV CHONE","V CHONE","VI CHONE","VII CHONE","VIII CHONE","IX CHONE","X CHONE","ACUMULADO"]
[null,1,"A035","ALMEIDA AYALA HECTOR",144,159.6,216.36,83.41,null,null,163.4,null,145.80000000000001,240.2,{"$f":"SUM(E8:N8)","v":1152.77}]
[null,2,"A248","LOYOLA MARIA CLAUDIA",80,null,128.32000000000002,130.4,121.904,160.19999999999999,null,128,null,80,{"$f":"SUM(E9:N9)","v":828.82400000000007}]
[null,3,"A045","MORABOWEN CESAR",160,134.4,240.4,null,null,null,154.80000000000001,null,null,null,689.59999999999991]
[null,4,"A250","ESTRADA CARLOS",64,67.2,121.904,null,128.32000000000002,null,126,null,162,null,669.42399999999998]
[null,5,"A055","VELEZ MARIA CONSUELO",120,null,null,87.8,160.4,128,null,80,null,null,576.20000000000005]
[null,6,"J034","LOZADA JOSE ARMANDO",76,null,null,130.4,115.49,64,null,54.400000000000006,null,121.60000000000001,561.89]
[null,7,"A192","ANDRADE JOSE DANIEL",null,null,null,146.69999999999999,null,null,null,160.19999999999999,153.9,null,460.79999999999995]
[null,8,"A033","SERRANO ARMANDO",null,null,null,null,240.4,null,172,null,null,null,412.4]
[null,9,"A171","WEEMAELS NATHALIE",null,124,null,null,null,null,137.6,144.18,null,null,405.78000000000003]
[null,10,"A060","RECALDE JUAN JOSE",null,117.8,228.38,null,null,null,58.48,null,null,null,404.66]
[null,11,"A097","MALO ANDREA",114,null,null,154.85,null,121.6,null,null,null,null,390.45000000000005]
[null,12,"A249","LETORT BERNARDA",null,168,null,null,null,null,146.19999999999999,null,67.2,null,381.4]
[null,13,"A046","MAURICIO  NOBOA",null,null,126,null,null,null,119.7,null,117.8,null,363.5]
[null,14,"A092","VINTIMILLA PABLO",152,null,null,null,null,null,null,152.18999999999997,null,null,304.18999999999994]
[null,15,"A058","RIBADENEIRA ARTURO",null,null,160.4,null,136.34,null,null,null,null,null,296.74]
[null,16,"A067","CANDO MARIO",null,{"$f":"67.2*0.8","v":53.760000000000005},null,null,152.38,null,68.8,null,null,null,274.94]
[null,17,"A026","LETORT JOSE",null,127.67999999999999,null,null,null,null,65.36,null,63.84,null,256.88]
[null,18,"A201","ALLAICO JOSE EMILIO",null,null,null,163,null,null,null,null,null,null,163]
[null,19,"A056","MORILLO MAURICIO",null,null,152.38,null,null,null,null,null,null,null,152.38]
[null,20,"A059","PORTILLA FELIPE",null,null,null,null,144.36000000000001,null,null,null,null,null,144.36000000000001]
[null,21,"A214","MOYA MIGUEL ANGEL",null,null,null,null,null,null,null,null,137.69999999999999,null,137.69999999999999]
[null,22,"A303","DAVIS JACQUELINE ",null,null,null,null,126,null,null,null,null,null,126]
[null,23,"A057","DAVILA JUAN DIEGO",null,null,null,70.239999999999995,null,null,null,null,null,null,70.239999999999995]
[null,24,"A200","MALO DIANA",null,null,null,66.73,null,null,null,null,null,null,66.73]
[null,25,"A172","BURBANO VILLAVICENCIO JAIME",null,null,null,null,null,null,null,null,null,null,{"$f":"SUM(E32:N32)","v":0}]
[null,26,"A185","RAMIREZ FABRICIO",null,null,null,null,null,null,null,null,null,null,0]
[null,27,"A200","MANCHENO GALO",null,null,null,null,null,null,null,null,null,null,0]
[null,28,"A081","KOPPEL OSWALDO",null,null,null,null,null,null,null,null,null,null,0]
[]
[null,null,null,null,null,null,null,null,null,null,null,{"$f":"IF(J37>=60,\"CLASIFICADO A 60 Km LIBRE y 80 Km NOVICIO\",IF(J37>=40,\"CLASIFICADO A 40 Km LIBRE y 60 Km NOVICIO\",\"\"))","v":""}]
[]
[]
[]
[]
[]
[]
[]
[]
[]
[]
[]
[]
[]
[]
[]
[]
[]
[null,null,null,null,null,null,null,null,null,null,null,{"$f":"IF(J55>=60,\"CLASIFICADO A 60 Km LIBRE y 80 Km NOVICIO\",IF(J55>=40,\"CLASIFICADO A 40 Km LIBRE y 60 Km NOVICIO\",\"\"))","v":""}]

{"sheet":"ELITE JUVENIL","index":5,"n_rows":39,"n_cols":15,"rows_kept":39,"cut":false,"hidden":false,"merged":[[5,4,5,14],[4,1,4,3],[4,4,4,14],[1,1,1,14],[2,1,2,14]]}
[]
[null,"PUNTAJE  ACUMULADO"]
[null,"CATEGORÍA JUVENIL ELITE"]
[]
[null,"ELITE JUVENIL",null,null,"PUNTAJES"]
[null,null,null,null,2017]
[null,null,"CODIGO","JINETE","I CHONE","II CHONE","III CHONE","IV CHONE","V CHONE","VI CHONE","VII CHONE","VIII CHONE","IX CHONE","X CHONE","ACUMULADO"]
[null,1,"J063","GONZALEZ BERNARDA",null,null,240.4,163,null,160.19999999999999,null,160.19999999999999,null,240.2,{"$f":"SUM(E8:N8)","v":964}]
[null,2,"J079","JARAMILLO MANUELA",null,67.2,228.38,null,null,null,172,null,129.6,null,597.17999999999995]
[null,3,"M022","MORABOWEN MOSQUERA CESAR",null,168,160.4,null,null,null,null,null,53.760000000000005,160,542.16]
[null,4,"J019","DARQUEA RICARDO",null,null,65.36,128.32,null,null,null,null,162,null,355.68]
[null,5,"J096","LOYOLA TEODORO ANDRES",null,null,null,null,null,80,null,128,null,null,208]
[null,6,"J008","GOMEZ ALEXANDER",null,134.4,null,null,null,null,null,null,null,null,134.4]
[null,7,"J034","ANDRADE JOSE DANIEL",null,null,null,null,null,null,null,null,null,null,{"$f":"SUM(E14:N14)","v":0}]
[null,8,"J096","LOYOLA TEODORO ANDRES",null,null,null,null,null,null,null,null,null,null,0]
[null,9,"J011","LETORT BERNARDA",null,null,null,null,null,null,null,null,null,null,0]
[null,10,"J020","SERRANO FELIPE",null,null,null,null,null,null,null,null,null,null,0]
[null,11,"J111","DAVALOS JOAQUINA",null,null,null,null,null,null,null,null,null,null,0]
[null,12,"J021","CORNEJO MANUEL",null,null,null,null,null,null,null,null,null,null,0]
[null,13,null,null,null,null,null,null,null,null,null,null,null,null,{"$f":"SUM(E20:N20)","v":0}]
[null,14,null,null,null,null,null,null,null,null,null,null,null,null,0]
[null,15,null,null,null,null,null,null,null,null,null,null,null,null,0]
[null,16,null,null,null,null,null,null,null,null,null,null,null,null,{"$f":"SUM(E23:N23)","v":0}]
[null,17,null,null,null,null,null,null,null,null,null,null,null,null,0]
[null,18,null,null,null,null,null,null,null,null,null,null,null,null,0]
[null,19,null,null,null,null,null,null,null,null,null,null,null,null,0]
[]
[null,null,null,null,null,null,null,null,null,null,null,{"$f":"IF(J28>=60,\"CLASIFICADO A 60 Km LIBRE y 80 Km NOVICIO\",IF(J28>=40,\"CLASIFICADO A 40 Km LIBRE y 60 Km NOVICIO\",\"\"))","v":""}]
[]
[]
[]
[]
[]
[]
[]
[]
[]
[]
[null,null,null,null,null,null,null,null,null,null,null,{"$f":"IF(J39>=60,\"CLASIFICADO A 60 Km LIBRE y 80 Km NOVICIO\",IF(J39>=40,\"CLASIFICADO A 40 Km LIBRE y 60 Km NOVICIO\",\"\"))","v":""}]

{"sheet":"ELITE MENORES","index":6,"n_rows":39,"n_cols":15,"rows_kept":39,"cut":false,"hidden":true,"merged":[[1,1,1,14],[2,1,2,14],[4,1,4,3],[4,4,4,14],[5,4,5,14]]}
[]
[null,"PUNTAJE  ACUMULADO"]
[null,"CATEGORÍA MENORES ELITE"]
[]
[null,"ELITE MENORES",null,null,"PUNTAJES"]
[null,null,null,null,2017]
[null,null,"CODIGO","JINETE","I CHONE","II CHONE","III CHONE","IV CHONE","V CHONE","VI CHONE","VII CHONE","VIII CHONE","IX CHONE","X CHONE","ACUMULADO"]
[null,1,null,null,null,null,null,null,null,null,null,null,null,null,{"$f":"SUM(E8:N8)","v":0}]
[null,2,null,null,null,null,null,null,null,null,null,null,null,null,0]
[null,3,null,null,null,null,null,null,null,null,null,null,null,null,0]
[null,4,null,null,null,null,null,null,null,null,null,null,null,null,0]
[null,5,null,null,null,null,null,null,null,null,null,null,null,null,0]
[null,6,null,null,null,null,null,null,null,null,null,null,null,null,0]
[null,7,null,null,null,null,null,null,null,null,null,null,null,null,0]
[null,8,null,null,null,null,null,null,null,null,null,null,null,null,0]
[null,9,null,null,null,null,null,null,null,null,null,null,null,null,0]
[null,10,null,null,null,null,null,null,null,null,null,null,null,null,0]
[null,11,null,null,null,null,null,null,null,null,null,null,null,null,0]
[null,12,null,null,null,null,null,null,null,null,null,null,null,null,0]
[null,13,null,null,null,null,null,null,null,null,null,null,null,null,0]
[null,14,null,null,null,null,null,null,null,null,null,null,null,null,0]
[null,15,null,null,null,null,null,null,null,null,null,null,null,null,{"$f":"SUM(E22:N22)","v":0}]
[null,16,null,null,null,null,null,null,null,null,null,null,null,null,0]
[null,17,null,null,null,null,null,null,null,null,null,null,null,null,0]
[null,18,null,null,null,null,null,null,null,null,null,null,null,null,0]
[null,19,null,null,null,null,null,null,null,null,null,null,null,null,0]
[]
[null,null,null,null,null,null,null,null,null,null,null,{"$f":"IF(J28>=60,\"CLASIFICADO A 60 Km LIBRE y 80 Km NOVICIO\",IF(J28>=40,\"CLASIFICADO A 40 Km LIBRE y 60 Km NOVICIO\",\"\"))","v":""}]
[]
[]
[]
[]
[]
[]
[]
[]
[]
[]
[null,null,null,null,null,null,null,null,null,null,null,{"$f":"IF(J39>=60,\"CLASIFICADO A 60 Km LIBRE y 80 Km NOVICIO\",IF(J39>=40,\"CLASIFICADO A 40 Km LIBRE y 60 Km NOVICIO\",\"\"))","v":""}]

{"sheet":"ELITE CABALLOS","index":7,"n_rows":83,"n_cols":16,"rows_kept":83,"cut":false,"hidden":false,"merged":[[5,5,5,15],[4,5,4,15],[1,1,1,15],[2,1,2,15],[4,1,4,4]]}
[]
[null,"PUNTAJE  ACUMULADO"]
[null,"CATEGORÍA CABALLOS ELITE"]
[]
[null,"ELITE CABALLOS",null,null,null,"PUNTAJES"]
[null,null,null,null,null,2017]
[null,null,"CODIGO","CABALLO","DUEÑO/JINETE","I CHONE","II CHONE","III CHONE","IV CHONE","V CHONE","VI CHONE","VII CHONE","VIII CHONE","IX CHONE","X CHONE","ACUMULADO"]
[null,1,"C232","ASRAEL","BERNARDO GONZALEZ",null,null,null,163,null,null,null,160.19999999999999,null,240.2,{"$f":"SUM(F8:O8)","v":563.4}]
[null,2,"C046","AMARETO","LETORT BERNARDA",null,168,228.38,null,null,null,146.19999999999999,null,null,null,{"$f":"SUM(F9:O9)","v":542.57999999999993}]
[null,3,"C114","KAFIR HA","HECTOR ALMEIDA AYALA",null,159.6,216.36,null,null,null,null,null,null,115.2,{"$f":"SUM(F10:O10)","v":491.16}]
[null,4,"C238","CALEÑA CMB","MORABOWEN CESAR",null,168,160.4,null,null,null,null,null,53.760000000000005,160,{"$f":"+G11+H11+O11","v":488.4}]
[null,5,"C140","SC SADIQ","HECTOR ALMEIDA AYALA",144,null,null,null,160.4,null,null,null,145.80000000000001,null,{"$f":"SUM(F12:O12)","v":450.2}]
[null,6,"C197","PATACON","LOYOLA CLAUDIA MARIA",80,null,null,130.4,null,160.19999999999999,null,128,null,80,{"$f":"SUM(I13:N13)","v":418.6}]
[null,7,"C473","SC SHADID","ESTRADA CARLOS",64,67.2,121.9,null,128.32000000000002,null,126,null,162,null,{"$f":"SUM(J14:N14)","v":416.32000000000005}]
[null,8,"C115","AVENTURERO","HECTOR ALMEIDA AYALA",null,null,null,null,null,null,163.4,null,null,240.2,{"$f":"SUM(F15:O15)","v":403.6}]
[null,9,"C200","MULATA","RECALDE  JUAN  JOSE",null,117.8,228.38,null,null,null,null,null,null,null,346.18]
[null,10,"C209","AISHA","MARIA CONSUELO VELEZ MENA",120,null,null,87.8,null,128,null,null,null,null,335.8]
[null,11,"C371","CARRUZO","BENITO JARMILLO",null,null,null,null,152.38,null,172,null,null,null,324.38]
[null,12,"C229","BULERIA CMB","MORABOWEN CESAR",160,null,null,null,null,null,154.80000000000001,null,null,null,314.8]
[null,13,"C098","AR BOMBON","RECALDE JUAN JOSE",null,null,null,null,126,null,61.92,null,116.64000000000001,null,304.56000000000006]
[null,14,"C418","NABU","BERNARDO DARQUEA",null,null,null,null,128.32,null,null,null,162,null,290.32]
[null,15,"C417","MANDI CMB","MORABOWEN CESAR",null,134.4,152.38,null,null,null,null,null,null,null,286.77999999999997]
[null,16,"C282","MAGIC MENES","FELIPE ANDRADE",null,null,115.49,146.69999999999999,null,null,null,null,null,null,262.19]
[null,17,"C413","RO EVITA","NATHALIE WEEMAELS",null,124,null,null,null,null,137.6,null,null,null,261.60000000000002]
[null,18,"C502","MONARCH","LOYOLA MARIA CLAUDIA",null,null,128.32,null,121.904,null,null,null,153.9,null,250.22399999999999]
[null,19,"C394","POLACO","GONZALEZ BERNARDA",null,null,240.4,null,null,null,null,null,null,null,{"$f":"SUM(F26:O26)","v":240.4}]
[null,20,"C329","SERENATA CMB","MORABOWEN CESAR",null,null,240.4,null,null,null,null,null,null,null,240.4]
[null,21,"C454","MD YALA","ARMANDO SERRANO",null,null,null,null,240.4,null,null,null,null,null,240.4]
[null,22,"C441","SANTOO","VELEZ MENA MARIA CONSUELO",null,null,null,null,null,121.6,null,80,null,null,201.6]
[null,23,"C445","ANGOSTURA FRODO","ARTURO RIBADENEIRA",null,null,null,null,136.34,null,55.04,null,null,null,191.38]
[null,24,"C370","JEREZ","JOSE LETORT",null,null,null,null,null,null,172,null,null,null,172]
[null,25,"C004","TEQUILA","GONZALEZ BERNARDO",null,null,null,163,null,null,null,null,null,null,163]
[null,26,"C096","AR FAISAN","ARTURO RIBADENEIRA",null,null,160.4,null,null,null,null,null,null,null,160.4]
[null,27,"C333","KADIN","GONZALEZ BERNARDA",null,null,null,null,null,160.19999999999999,null,null,null,null,160.19999999999999]
[null,28,"C072","QUITA PENAS","FELIPE ANDRADE",null,null,null,null,null,null,null,160.19999999999999,null,null,160.19999999999999]
[null,29,"C343","PV RIGUEL","PABLO VINTIMILLA",null,null,null,null,null,null,null,152.18999999999997,null,null,152.18999999999997]
[null,30,"C252","BIANCA","VINTIMILLA PABLO",152,null,null,null,null,null,null,null,null,null,152]
[null,31,"C204","AR ALBATSYN","PORTILLA FELIPE",null,null,null,null,144.36000000000001,null,null,null,null,null,144.36000000000001]
[null,32,"C093","CG ALLASKI","WEEMAELS NATHALIE",null,null,null,null,null,null,null,144.18,null,null,144.18]
[null,33,"C174","ZT SATFANDU","MIGUEL MOYA",null,null,null,null,null,null,null,null,137.69999999999999,null,137.69999999999999]
[null,34,"C143","ALI","BERNARDO DARQUEA",null,null,65.36,null,null,null,null,null,67.2,null,132.56]
[null,35,"C097","CENTAURO","JAIME BURBANO",null,null,null,83.41,null,null,null,null,null,null,83.41]
[null,36,"C234","EL PADRINO","VELEZ MENA MARIA CONSUELO",null,null,null,66.73,null,null,null,null,null,null,66.73]
[null,37,"C402","KADAFY","BERNARDO DARQUEA",null,null,58.48,null,null,null,null,null,null,null,58.48]
[null,38,"C286","NEGRO EG","BERNARDO DARQUEA",null,null,null,null,null,null,null,null,null,null,{"$f":"SUM(F45:O45)","v":0}]
[null,39,"C206","AS GITANA","BERNARDO DARQUEA",null,null,null,null,null,null,null,null,null,null,0]
[null,40,"C175","CLAW","BERNARDO DARQUEA",null,null,null,null,null,null,null,null,null,null,0]
[null,41,"C165","DIAMANTE","BERNARDO DARQUEA",null,null,null,null,null,null,null,null,null,null,0]
[null,42,"C136","FHARA CONEJA","BERNARDO DARQUEA",null,null,null,null,null,null,null,null,null,null,0]
[null,43,"C134","JUPITER","BERNARDO DARQUEA",null,null,null,null,null,null,null,null,null,null,0]
[null,44,"C192","KALA","BERNARDO DARQUEA",null,null,null,null,null,null,null,null,null,null,0]
[null,45,"C094","MISTERIO","BERNARDO DARQUEA",null,null,null,null,null,null,null,null,null,null,0]
[null,46,"C360","PSICOTICO","BERNARDO DARQUEA",null,null,null,null,null,null,null,null,null,null,0]
[null,47,"C154","SHAKIRA","BERNARDO DARQUEA",null,null,null,null,null,null,null,null,null,null,0]
[null,48,"C405","SOLOANDA","BERNARDO DARQUEA",null,null,null,null,null,null,null,null,null,null,0]
[null,49,"C074","WISKY","BERNARDO DARQUEA",null,null,null,null,null,null,null,null,null,null,0]
[null,50,"C389","SHAKIRA VO","BERNARDO DARQUEA",null,null,null,null,null,null,null,null,null,null,0]
[null,51,null,null,null,null,null,null,null,null,null,null,null,null,null,0]
[null,52,null,null,null,null,null,null,null,null,null,null,null,null,null,{"$f":"SUM(F59:O59)","v":0}]
[null,53,null,null,null,null,null,null,null,null,null,null,null,null,null,0]
[null,54,null,null,null,null,null,null,null,null,null,null,null,null,null,0]
[null,55,null,null,null,null,null,null,null,null,null,null,null,null,null,0]
[null,56,null,null,null,null,null,null,null,null,null,null,null,null,null,0]
[]
[]
[]
[]
[]
[]
[]
[]
[]
[]
[]
[]
[]
[]
[]
[]
[]
[]
[]
[null,null,null,null,null,null,null,null,null,null,null,null,{"$f":"IF(K83>=60,\"CLASIFICADO A 60 Km LIBRE y 80 Km NOVICIO\",IF(K83>=40,\"CLASIFICADO A 40 Km LIBRE y 60 Km NOVICIO\",\"\"))","v":""}]

{"sheet":"AMATEUR ABIERTA","index":8,"n_rows":94,"n_cols":15,"rows_kept":94,"cut":false,"hidden":false,"merged":[[5,4,5,14],[4,1,4,3],[4,4,4,14],[1,1,1,14],[2,1,2,14]]}
[]
[null,"PUNTAJE  ACUMULADO"]
[null,"CATEGORÍA ABIERTA NOVICIOS"]
[]
[null,"NOVICIOS ABIERTA",null,null,"PUNTAJES"]
[null,null,null,null,2017]
[null,null,"CODIGO","JINETE","I CHONE","II CHONE","III CHONE","IV CHONE","V CHONE","VI CHONE","VII CHONE","VIII CHONE","IX CHONE","X CHONE","ACUMULADO"]
[null,1,"A236","JUNE TATE",null,63.84,null,null,null,null,null,57.6,123.12,115.2,{"$f":"SUM(E8:N8)","v":359.76}]
[null,2,"A064","DIEGO CASTILLO",null,null,null,null,65.36,null,137.6,null,129.6,null,332.55999999999995]
[null,3,"A240","GONZALEZ XIMENA ",null,null,null,63.22,68.8,null,null,null,null,128,260.02]
[null,4,"A030","MONCAYO DANILO",null,57.12,null,null,null,null,61.920000000000009,null,116.64000000000001,null,235.68]
[null,5,"A125","FALCONI FRANCISCO",null,60.48,68.8,null,null,null,null,null,null,null,129.28]
[null,6,"A102","CLARK JUSTIN",null,null,115.48800000000001,null,null,null,null,null,null,null,115.48800000000001]
[null,7,"A064","CASTILLO DIEGO",null,null,null,null,null,null,null,null,null,null,0]
[null,8,"A001","VINTIMILLA PAULINO",64,null,null,null,null,null,null,null,null,null,64]
[null,9,"A257","VINTIMILLA CORDERO PABLO",null,null,null,null,null,null,null,64,null,null,64]
[null,10,"A315","AGUAYO JUAN PABLO",null,null,null,null,61.920000000000009,null,null,null,null,null,61.920000000000009]
[null,11,"A093","GONZALEZ RENATO",null,null,null,null,null,null,null,60.800000000000004,null,null,60.800000000000004]
[null,12,"A251","GONZALEZ JERVES XIMENA",null,null,null,null,null,60.8,null,null,null,null,60.8]
[null,13,null,null,null,null,null,null,null,null,null,null,null,null,{"$f":"SUM(E20:N20)","v":0}]
[null,14,null,null,null,null,null,null,null,null,null,null,null,null,0]
[null,15,"A212","CANGAS GUILLERMO",null,null,null,null,null,null,null,null,null,null,0]
[null,16,"A219","MAHNKE LIESEL",null,null,null,null,null,null,null,null,null,null,0]
[null,17,"A220","TUTIVEN LUIS",null,null,null,null,null,null,null,null,null,null,0]
[null,18,"A178","JUAN CARLOS ANDRADE",null,null,null,null,null,null,null,null,null,null,0]
[null,19,"A215","COELLAR GONZALEZ PEDRO",null,null,null,null,null,null,null,null,null,null,0]
[null,20,"A218","UGALDE LORENA",null,null,null,null,null,null,null,null,null,null,0]
[null,21,"A221","PASQUEL HUGO",null,null,null,null,null,null,null,null,null,null,0]
[null,22,"A220","DUEÑAS GONZALO",null,null,null,null,null,null,null,null,null,null,0]
[null,23,"A301","SIMON  PEREZ",null,null,null,null,null,null,null,null,null,null,0]
[null,24,"A215","COELLAR GONZALEZ PEDRO",null,null,null,null,null,null,null,null,null,null,0]
[null,25,"A223","MORENO MILTON GABRIEL",null,null,null,null,null,null,null,null,null,null,0]
[null,26,"A218","TRUEBA VICTORIA",null,null,null,null,null,null,null,null,null,null,0]
[null,27,null,null,null,null,null,null,null,null,null,null,null,null,{"$f":"SUM(E34:N34)","v":0}]
[null,28,null,null,null,null,null,null,null,null,null,null,null,null,0]
[null,29,null,null,null,null,null,null,null,null,null,null,null,null,0]
[null,30,null,null,null,null,null,null,null,null,null,null,null,null,0]
[null,31,null,null,null,null,null,null,null,null,null,null,null,null,0]
[null,32,null,null,null,null,null,null,null,null,null,null,null,null,0]
[null,33,null,null,null,null,null,null,null,null,null,null,null,null,0]
[null,34,null,null,null,null,null,null,null,null,null,null,null,null,0]
[null,35,null,null,null,null,null,null,null,null,null,null,null,null,0]
[null,36,null,null,null,null,null,null,null,null,null,null,null,null,0]
[null,37,null,null,null,null,null,null,null,null,null,null,null,null,0]
[null,38,null,null,null,null,null,null,null,null,null,null,null,null,0]
[null,39,null,null,null,null,null,null,null,null,null,null,null,null,0]
[null,40,null,null,null,null,null,null,null,null,null,null,null,null,0]
[null,41,null,null,null,null,null,null,null,null,null,null,null,null,0]
[null,42,null,null,null,null,null,null,null,null,null,null,null,null,0]
[null,43,null,null,null,null,null,null,null,null,null,null,null,null,{"$f":"SUM(E50:N50)","v":0}]
[null,44,null,null,null,null,null,null,null,null,null,null,null,null,{"$f":"SUM(E51:N51)","v":0}]
[null,45,null,null,null,null,null,null,null,null,null,null,null,null,0]
[null,46,null,null,null,null,null,null,null,null,null,null,null,null,0]
[null,47,null,null,null,null,null,null,null,null,null,null,null,null,0]
[null,48,null,null,null,null,null,null,null,null,null,null,null,null,0]
[null,49,null,null,null,null,null,null,null,null,null,null,null,null,0]
[null,50,null,null,null,null,null,null,null,null,null,null,null,null,0]
[null,51,null,null,null,null,null,null,null,null,null,null,null,null,0]
[null,52,null,null,null,null,null,null,null,null,null,null,null,null,0]
[null,53,null,null,null,null,null,null,null,null,null,null,null,null,0]
[null,54,null,null,null,null,null,null,null,null,null,null,null,null,0]
[null,55,null,null,null,null,null,null,null,null,null,null,null,null,0]
[null,56,null,null,null,null,null,null,null,null,null,null,null,null,0]
[null,57,null,null,null,null,null,null,null,null,null,null,null,null,0]
[null,58,null,null,null,null,null,null,null,null,null,null,null,null,0]
[null,59,null,null,null,null,null,null,null,null,null,null,null,null,0]
[null,60,null,null,null,null,null,null,null,null,null,null,null,null,0]
[null,61,null,null,null,null,null,null,null,null,null,null,null,null,0]
[null,62,null,null,null,null,null,null,null,null,null,null,null,null,0]
[null,63,null,null,null,null,null,null,null,null,null,null,null,null,0]
[null,64,null,null,null,null,null,null,null,null,null,null,null,null,0]
[null,65,null,null,null,null,null,null,null,null,null,null,null,null,0]
[null,66,null,null,null,null,null,null,null,null,null,null,null,null,0]
[null,67,null,null,null,null,null,null,null,null,null,null,null,null,0]
[]
[]
[]
[]
[]
[]
[]
[]
[]
[]
[]
[]
[]
[]
[]
[]
[]
[]
[]
[null,null,null,null,null,null,null,null,null,null,null,{"$f":"IF(J94>=60,\"CLASIFICADO A 60 Km LIBRE y 80 Km NOVICIO\",IF(J94>=40,\"CLASIFICADO A 40 Km LIBRE y 60 Km NOVICIO\",\"\"))","v":""}]

{"sheet":"AMATEUR JUVENIL","index":9,"n_rows":83,"n_cols":15,"rows_kept":83,"cut":false,"hidden":false,"merged":[[5,4,5,14],[4,1,4,3],[4,4,4,14],[1,1,1,14],[2,1,2,14]]}
[]
[null,"PUNTAJE  ACUMULADO"]
[null,"CATEGORÍA JUVENIL NOVICIOS"]
[]
[null,"NOVICIOS JUVENIL",null,null,"PUNTAJES"]
[null,null,null,null,2017]
[null,null,"CODIGO","JINETE","I CHONE","II CHONE","III CHONE","IV CHONE","V CHONE","VI CHONE","VII CHONE","VIII CHONE","IX CHONE","X CHONE","ACUMULADO"]
[null,1,"J114","MASAPANTA LUIS",null,null,128.32000000000002,null,null,null,null,null,67.2,null,{"$f":"SUM(E8:N8)","v":195.52000000000004}]
[null,2,"J241","PEREZ SANDRO",null,null,68.8,68.8,null,null,null,null,null,null,137.6]
[null,3,"J015","ANDRES DARQUEA",null,null,null,null,null,null,68.8,null,60.480000000000011,null,129.28]
[null,4,"J222","CALERO MARIA ISABEL ",null,null,null,65.36,null,null,null,null,57.12,null,122.47999999999999]
[null,5,"J040","DARQUEA GABRIEL",null,null,58.48,null,null,null,null,null,63.84,null,122.32]
[null,6,"J104","HERNANDEZ MARIA JOSE ",null,null,55.04,61.920000000000009,null,null,null,null,null,null,116.96000000000001]
[null,7,null,"MONTESINOS SANTIAGO",null,null,87.8,null,null,null,null,null,null,null,87.8]
[null,8,null,"ALVARADO SEBASTIAN",null,null,83.41,null,null,null,null,null,null,null,83.41]
[null,9,"J109","ALVARADO SEBASTIAN",null,null,83.41,null,null,null,null,null,null,null,83.41]
[null,10,"J048","CONTRERAS MARIA ALICIA",null,null,79.02,null,null,null,null,null,null,null,79.02]
[null,11,null,"CARRASCO JUAN SEBASTIAN",null,null,70.239999999999995,null,null,null,null,null,null,null,70.239999999999995]
[null,12,"M031","DAVALOS JORGE",null,null,61.920000000000009,null,null,null,null,null,null,null,61.920000000000009]
[null,13,null,null,null,null,null,null,null,null,null,null,null,null,{"$f":"SUM(E20:N20)","v":0}]
[null,14,null,null,null,null,null,null,null,null,null,null,null,null,0]
[null,15,"J114","MAZAPANTA KEVIN",null,null,null,null,null,null,null,null,null,null,0]
[null,16,"J095","BERREZUETA PABLO SANTIAGO",null,null,null,null,null,null,null,null,null,null,0]
[null,17,"J100","HURTADO HECTOR",null,null,null,null,null,null,null,null,null,null,0]
[null,18,"J021","CORNEJO MANUEL",null,null,null,null,null,null,null,null,null,null,0]
[null,19,"J065","ESPINOZA BARBARA",null,null,null,null,null,null,null,null,null,null,0]
[null,20,"J112","LEON JUAN",null,null,null,null,null,null,null,null,null,null,0]
[null,21,"J201","PAREDES EDWIN",null,null,null,null,null,null,null,null,null,null,0]
[null,22,"J117","CANDELARIO ARREAGA WAGNER",null,null,null,null,null,null,null,null,null,null,0]
[null,23,null,null,null,null,null,null,null,null,null,null,null,null,{"$f":"SUM(E30:N30)","v":0}]
[null,24,null,null,null,null,null,null,null,null,null,null,null,null,0]
[null,25,null,null,null,null,null,null,null,null,null,null,null,null,0]
[null,26,null,null,null,null,null,null,null,null,null,null,null,null,0]
[null,27,null,null,null,null,null,null,null,null,null,null,null,null,0]
[null,28,null,null,null,null,null,null,null,null,null,null,null,null,0]
[null,29,null,null,null,null,null,null,null,null,null,null,null,null,0]
[null,30,null,null,null,null,null,null,null,null,null,null,null,null,0]
[null,31,null,null,null,null,null,null,null,null,null,null,null,null,0]
[null,32,null,null,null,null,null,null,null,null,null,null,null,null,0]
[null,33,null,null,null,null,null,null,null,null,null,null,null,null,0]
[null,34,null,null,null,null,null,null,null,null,null,null,null,null,0]
[null,35,null,null,null,null,null,null,null,null,null,null,null,null,0]
[null,36,null,null,null,null,null,null,null,null,null,null,null,null,0]
[null,37,null,null,null,null,null,null,null,null,null,null,null,null,0]
[null,38,null,null,null,null,null,null,null,null,null,null,null,null,0]
[null,39,null,null,null,null,null,null,null,null,null,null,null,null,0]
[null,40,null,null,null,null,null,null,null,null,null,null,null,null,0]
[null,41,null,null,null,null,null,null,null,null,null,null,null,null,0]
[null,42,null,null,null,null,null,null,null,null,null,null,null,null,0]
[null,43,null,null,null,null,null,null,null,null,null,null,null,null,0]
[null,44,null,null,null,null,null,null,null,null,null,null,null,null,0]
[null,45,null,null,null,null,null,null,null,null,null,null,null,null,0]
[null,46,null,null,null,null,null,null,null,null,null,null,null,null,0]
[null,47,null,null,null,null,null,null,null,null,null,null,null,null,0]
[null,48,null,null,null,null,null,null,null,null,null,null,null,null,0]
[null,49,null,null,null,null,null,null,null,null,null,null,null,null,0]
[null,50,null,null,null,null,null,null,null,null,null,null,null,null,0]
[null,51,null,null,null,null,null,null,null,null,null,null,null,null,0]
[null,52,null,null,null,null,null,null,null,null,null,null,null,null,0]
[null,53,null,null,null,null,null,null,null,null,null,null,null,null,0]
[null,54,null,null,null,null,null,null,null,null,null,null,null,null,0]
[null,55,null,null,null,null,null,null,null,null,null,null,null,null,0]
[null,56,null,null,null,null,null,null,null,null,null,null,null,null,0]
[]
[null,null,null,null,null,null,null,null,null,null,null,{"$f":"IF(J65>=60,\"CLASIFICADO A 60 Km LIBRE y 80 Km NOVICIO\",IF(J65>=40,\"CLASIFICADO A 40 Km LIBRE y 60 Km NOVICIO\",\"\"))","v":""}]
[]
[]
[]
[]
[]
[]
[]
[]
[]
[]
[]
[]
[]
[]
[]
[]
[]
[null,null,null,null,null,null,null,null,null,null,null,{"$f":"IF(J83>=60,\"CLASIFICADO A 60 Km LIBRE y 80 Km NOVICIO\",IF(J83>=40,\"CLASIFICADO A 40 Km LIBRE y 60 Km NOVICIO\",\"\"))","v":""}]

{"sheet":"AMATEUR MENORES","index":10,"n_rows":50,"n_cols":15,"rows_kept":50,"cut":false,"hidden":false,"merged":[[5,4,5,14],[4,1,4,3],[4,4,4,14],[1,1,1,14],[2,1,2,14]]}
[]
[null,"PUNTAJE  ACUMULADO"]
[null,"CATEGORÍA MENORES NOVICIOS"]
[]
[null,"INFANTIL",null,null,"PUNTAJES"]
[null,null,null,null,2017]
[null,null,"CODIGO","JINETE","I CHONE","II CHONE","III CHONE","IV CHONE","V CHONE","VI CHONE","VII CHONE","VIII CHONE","IX CHONE","X CHONE","ACUMULADO"]
[null,2,null,"ANDRADE FELIPE ANDRES",null,null,87.8,null,null,64,null,null,null,80,{"$f":"SUM(E8:N8)","v":231.8}]
[null,1,null,"LOPEZ JUAN RAFAEL",null,null,130.4,null,null,null,null,null,null,null,{"$f":"SUM(E9:N9)","v":130.4}]
[null,3,null,"DONOSO JULIAN",null,null,83.41,null,null,null,null,null,null,null,{"$f":"SUM(E10:N10)","v":83.41}]
[null,4,null,null,null,null,null,null,null,null,null,null,null,null,{"$f":"SUM(E11:N11)","v":0}]
[null,5,null,null,null,null,null,null,null,null,null,null,null,null,0]
[null,6,null,null,null,null,null,null,null,null,null,null,null,null,0]
[null,7,null,null,null,null,null,null,null,null,null,null,null,null,0]
[null,8,null,null,null,null,null,null,null,null,null,null,null,null,0]
[null,9,null,null,null,null,null,null,null,null,null,null,null,null,0]
[null,10,null,null,null,null,null,null,null,null,null,null,null,null,0]
[null,11,null,null,null,null,null,null,null,null,null,null,null,null,0]
[null,12,null,null,null,null,null,null,null,null,null,null,null,null,{"$f":"SUM(E19:N19)","v":0}]
[null,13,null,null,null,null,null,null,null,null,null,null,null,null,0]
[null,14,null,null,null,null,null,null,null,null,null,null,null,null,0]
[null,15,null,null,null,null,null,null,null,null,null,null,null,null,0]
[null,16,null,null,null,null,null,null,null,null,null,null,null,null,0]
[null,17,null,null,null,null,null,null,null,null,null,null,null,null,0]
[null,18,null,null,null,null,null,null,null,null,null,null,null,null,0]
[null,19,null,null,null,null,null,null,null,null,null,null,null,null,0]
[null,20,null,null,null,null,null,null,null,null,null,null,null,null,0]
[null,21,null,null,null,null,null,null,null,null,null,null,null,null,0]
[null,22,null,null,null,null,null,null,null,null,null,null,null,null,0]
[null,23,null,null,null,null,null,null,null,null,null,null,null,null,0]
[]
[null,null,null,null,null,null,null,null,null,null,null,{"$f":"IF(J32>=60,\"CLASIFICADO A 60 Km LIBRE y 80 Km NOVICIO\",IF(J32>=40,\"CLASIFICADO A 40 Km LIBRE y 60 Km NOVICIO\",\"\"))","v":""}]
[]
[]
[]
[]
[]
[]
[]
[]
[]
[]
[]
[]
[]
[]
[]
[]
[]
[null,null,null,null,null,null,null,null,null,null,null,{"$f":"IF(J50>=60,\"CLASIFICADO A 60 Km LIBRE y 80 Km NOVICIO\",IF(J50>=40,\"CLASIFICADO A 40 Km LIBRE y 60 Km NOVICIO\",\"\"))","v":""}]

{"sheet":"CABALLOS NOVICIOS","index":11,"n_rows":120,"n_cols":16,"rows_kept":120,"cut":false,"hidden":false,"merged":[[5,5,5,15],[4,1,4,4],[4,5,4,15],[1,1,1,15],[2,1,2,15]]}
[]
[null,"PUNTAJE  ACUMULADO"]
[null,"CATEGORÍA CABALLOS NOVICIOS"]
[]
[null,"CABALLOS  NOVICIOS",null,null,null,"PUNTAJES"]
[null,null,null,null,null,2017]
[null,null,"CODIGO","CABALLO","DUEÑO/JINETE","I CHONE","II CHONE","III CHONE","IV CHONE","V CHONE","VI CHONE","VII CHONE","VIII CHONE","IX CHONE","X CHONE","ACUMULADO"]
[null,1,"C288","LIA","MAURICIO NOBOA",null,null,126,null,null,null,119.69999999999999,null,117.8,null,{"$f":"SUM(F8:O8)","v":363.5}]
[null,2,"C059","GS RASHID","DIEGO CASTILLO",null,null,null,null,65.36,null,137.6,null,129.6,null,332.55999999999995]
[null,3,"C403","MARAVILLA","HECTOR ALMEIDA AYALA",null,null,68.8,null,68.8,null,null,null,123.12,null,260.72000000000003]
[null,4,"C514","BERNARDA","XIMENA GONZALEZ",null,null,null,63.216000000000008,65.36,null,null,null,null,128,256.57600000000002]
[null,5,"C415","GH ROSCO","PABLO VINTIMILLA",null,null,null,null,null,64,null,64,null,121.60000000000001,249.60000000000002]
[null,6,"C511","SHAKKIRA VO","FELIPE ANDRADE",null,null,null,154.85,null,null,null,null,null,80,234.85]
[null,7,"C402","ABU DABI","VINTIMILLA PABLO",76,null,null,null,115.48800000000001,null,null,null,null,null,191.488]
[null,8,"C372","SHAKIRA CMB","CESAR MORABOWEN",null,null,61.920000000000009,null,65.36,null,null,null,57.12,null,184.4]
[null,9,"C436","TAKARI CSE","GOMEZ ALEXANDER",134.4,null,null,null,null,null,null,null,null,null,134.4]
[null,10,"C512","SA DREAMSHA","VINTIMILLA PAULINO",64,null,null,70.240000000000009,null,null,null,null,null,null,134.24]
[null,11,"C497","ABUDABI","PABLO VINTIMILLA",null,null,null,130.4,null,null,null,null,null,null,130.4]
[null,12,"C404","SALMA","MANUELA JARAMILLO",null,null,null,null,null,null,null,null,129.6,null,129.6]
[null,13,"C241","ENSUEÑO","FRANCISCO FALCONI",null,60.480000000000004,68.8,null,null,null,null,null,null,null,129.28]
[null,14,"C396","LATICA BD","BERNARDO DARQUEA",null,null,null,null,null,null,68.8,null,60.480000000000011,null,129.28]
[null,15,"C370","JEREZ","JOSE LETORT",null,null,128.32000000000002,null,null,null,null,null,null,null,128.32000000000002]
[null,18,"C217","GERONIMO","GALO MANCHENO",null,null,null,null,128.32000000000002,null,null,null,null,null,128.32000000000002]
[null,19,"C278","JUGUETE","LOYOLA TEODORO ANDRES",null,null,null,null,null,null,null,128,null,null,128]
[null,20,"C420","JEREZ","JOSE LETORT",127.68,null,null,null,null,null,null,null,null,null,127.68]
[null,21,"C437","WOODY","CANGAS GUILLERMO",null,null,null,null,null,null,null,null,124,null,124]
[null,22,"C390","MD ARAMUS","ARMANDO SERRANO",null,53.760000000000005,null,null,null,null,68.8,null,null,null,122.56]
[null,23,"C376","NABU",null,null,null,null,null,121.904,null,null,null,null,null,121.904]
[null,24,"C513","MONTE SAU","TATE JUNE",null,63.839999999999996,null,null,null,null,null,57.6,null,null,121.44]
[null,25,"C389","MALEIK CSE","JUAN JOSE RECALDE",null,57.12,null,null,null,null,58.48,null,null,null,115.6]
[null,26,"C441","SANTOO","MARIA CONSUELO VELEZ MENA",114,null,null,null,null,null,null,null,null,null,114]
[null,27,"C278","JUGUETE","LOYOLA TEODORO ANDRES",null,null,null,null,null,80,null,null,null,null,80]
[null,28,"C029","MILONGA","MANUELA JARAMILLO",null,67.2,null,null,null,null,null,null,null,null,67.2]
[null,29,"C151","ILUSIÓN","JOSÉ LETORT",null,null,null,null,null,null,65.36,null,null,null,65.36]
[null,30,"C532","HASAN","FELIPE ANDRADE",null,null,null,null,null,64,null,null,null,null,64]
[null,31,"C395","MATE","JUAN PABLO AGUAYO",null,null,null,null,61.920000000000009,null,null,null,null,null,61.920000000000009]
[null,32,"C401","SUMAYA BD","MARIA JOSE HERNANDEZ",null,null,null,null,61.920000000000009,null,null,null,null,null,61.920000000000009]
[null,33,"C265","COMETA","GONZALEZ JERVES XIMENA",null,null,null,null,null,60.800000000000004,null,null,null,null,60.800000000000004]
[null,34,"C265","COMETA","GONZALEZ RENATO",null,null,null,null,null,null,null,60.800000000000004,null,null,60.800000000000004]
[null,33,"C402","KADAFY","BERNARDO DARQUEA",null,null,58.48,null,null,null,null,null,null,null,58.48]
[null,34,"C401","SUMAYA BD","PEREZ MARIA JOSE",null,null,55.04,null,null,null,null,null,null,null,55.04]
[null,35,"C542","PV GUAPA","PABLO VINTIMILLA",null,null,null,null,null,null,null,54.400000000000006,null,null,54.400000000000006]
[null,36,null,null,null,null,null,null,null,null,null,null,null,null,null,0]
[null,37,null,null,null,null,null,null,null,null,null,null,null,null,null,{"$f":"SUM(F44:O44)","v":0}]
[null,38,null,null,null,null,null,null,null,null,null,null,null,null,null,0]
[null,39,null,null,null,null,null,null,null,null,null,null,null,null,null,{"$f":"SUM(F46:O46)","v":0}]
[null,40,null,null,null,null,null,null,null,null,null,null,null,null,null,0]
[null,41,"C334","CAPORAL","SALTIVERI MARIA JESUS",null,null,null,null,null,null,null,null,null,null,0]
[null,42,"C101","CARAMELO CMB","DAVALOS JORGE EDUARDO",null,null,null,null,null,null,null,null,null,null,0]
[null,43,"C441","SANTOO","MARIA CONSUELO VELEZ MENA",null,null,null,null,null,null,null,null,null,null,0]
[null,44,"C209","AISHA","MARIA CONSUELO VELEZ MENA",null,null,null,null,null,null,null,null,null,null,0]
[null,45,null,null,null,null,null,null,null,null,null,null,null,null,null,0]
[null,46,"C085","BLACK","BERNARDO DARQUEA",null,null,null,null,null,null,null,null,null,null,0]
[null,47,"C414","GH PSHYRO","LOZADA JOSE ARMANDO",null,null,null,null,null,null,null,null,null,null,0]
[null,48,"C243","PAVITA","JUAN CARLOS ANDRADE",null,null,null,null,null,null,null,null,null,null,0]
[null,49,"C217","GERONIMO","GALO MANCHENO",null,null,null,null,null,null,null,null,null,null,0]
[null,50,"C406","ELECTRIFY VO","ANDRADE JOSE DANIEL",null,null,null,null,null,null,null,null,null,null,0]
[null,51,"C438","MC LUCAS","COELLAR GONZALEZ PEDRO",null,null,null,null,null,null,null,null,null,null,0]
[null,52,"C439","SAN CARLOS","ALLAICO JOSE EMILIO",null,null,null,null,null,null,null,null,null,null,0]
[null,53,"C369","AS ANGUS","ARMANDO SERRANO",null,null,null,null,null,null,null,null,null,null,0]
[null,54,"C387","AGUARDIENTICO","MAURICIO NOBOA",null,null,null,null,null,null,null,null,null,null,0]
[null,55,"C427","FLACA","FELIPE SERRANO",null,null,null,null,null,null,null,null,null,null,0]
[null,56,"C081","SUE LD","ANDRES BARAHONA",null,null,null,null,null,null,null,null,null,null,0]
[null,57,"C130","ESPIRITU DEL ECUADOR","BERREZUETA PABLO SANTIAGO",null,null,null,null,null,null,null,null,null,null,0]
[null,58,"C444","QUINA","UGALDE LORENA",null,null,null,null,null,null,null,null,null,null,0]
[null,59,"C443","ZAHIRA","LOYOLA TEODORO ANDRES",null,null,null,null,null,null,null,null,null,null,0]
[null,60,"C416","CARRUZO","LUIS MAZAPANTA",null,null,null,null,null,null,null,null,null,null,0]
[null,61,"C438","MC JULIA","CESAR MORABOWEN",null,null,null,null,null,null,null,null,null,null,0]
[null,62,"C459","GALAN AMDD","DARQUEA ANA MARIA",null,null,null,null,null,null,null,null,null,null,0]
[null,63,"C461","JULIA CMB","CESAR MORABOWEN",null,null,null,null,null,null,null,null,null,null,0]
[null,64,"C462","SERENA","CANDELARIO ARREAGA WAGNER",null,null,null,null,null,null,null,null,null,null,0]
[null,65]
[null,66]
[null,67,null,null,null,null,null,null,null,null,null,null,null,null,null,{"$f":"SUM(F74:N74)","v":0}]
[null,68,null,null,null,null,null,null,null,null,null,null,null,null,null,0]
[null,69,null,null,null,null,null,null,null,null,null,null,null,null,null,{"$f":"SUM(F76:N76)","v":0}]
[null,70,null,null,null,null,null,null,null,null,null,null,null,null,null,0]
[null,71,null,null,null,null,null,null,null,null,null,null,null,null,null,0]
[null,72,null,null,null,null,null,null,null,null,null,null,null,null,null,0]
[null,73,null,null,null,null,null,null,null,null,null,null,null,null,null,0]
[null,74,null,null,null,null,null,null,null,null,null,null,null,null,null,0]
[null,75,null,null,null,null,null,null,null,null,null,null,null,null,null,0]
[null,76,null,null,null,null,null,null,null,null,null,null,null,null,null,0]
[null,77,null,null,null,null,null,null,null,null,null,null,null,null,null,0]
[null,78,null,null,null,null,null,null,null,null,null,null,null,null,null,0]
[null,79,null,null,null,null,null,null,null,null,null,null,null,null,null,0]
[null,80,null,null,null,null,null,null,null,null,null,null,null,null,null,0]
[null,81,null,null,null,null,null,null,null,null,null,null,null,null,null,0]
[null,82,null,null,null,null,null,null,null,null,null,null,null,null,null,0]
[null,83,null,null,null,null,null,null,null,null,null,null,null,null,null,0]
[null,84,null,null,null,null,null,null,null,null,null,null,null,null,null,0]
[null,85,null,null,null,null,null,null,null,null,null,null,null,null,null,0]
[null,86,null,null,null,null,null,null,null,null,null,null,null,null,null,0]
[null,87,null,null,null,null,null,null,null,null,null,null,null,null,null,0]
[null,88,null,null,null,null,null,null,null,null,null,null,null,null,null,0]
[null,89,null,null,null,null,null,null,null,null,null,null,null,null,null,0]
[null,90,null,null,null,null,null,null,null,null,null,null,null,null,null,0]
[null,91,null,null,null,null,null,null,null,null,null,null,null,null,null,0]
[null,92,null,null,null,null,null,null,null,null,null,null,null,null,null,0]
[null,93,null,null,null,null,null,null,null,null,null,null,null,null,null,0]
[]
[]
[]
[]
[]
[]
[]
[]
[]
[]
[]
[]
[]
[]
[]
[]
[]
[]
[]
[null,null,null,null,null,null,null,null,null,null,null,null,{"$f":"IF(K120>=60,\"CLASIFICADO A 60 Km LIBRE y 80 Km NOVICIO\",IF(K120>=40,\"CLASIFICADO A 40 Km LIBRE y 60 Km NOVICIO\",\"\"))","v":""}]

{"sheet":"BINOMIOS ABIERTA","index":12,"n_rows":165,"n_cols":17,"rows_kept":165,"cut":false,"hidden":false,"merged":[[1,1,1,16],[2,1,2,16],[4,1,4,3],[4,6,4,16],[5,6,5,16]]}
[]
[null,"PUNTAJE  ACUMULADO"]
[null,"CATEGORÍA BINOMIOS ABIERTA"]
[]
[null,"BINOMIOS ABIERTA",null,null,null,null,"PUNTAJES"]
[null,null,null,null,null,null,2017]
[null,null,"CODIGO","JINETE","CODIGO","CABALLO","I CHONE","II CHONE","III CHONE","IV CHONE","V CHONE","VI CHONE","VII CHONE","VIII CHONE","IX CHONE","X CHONE","ACUMULADO"]
[null,1,"A250","ESTRADA CARLOS","C473","SC SHADID",64,67.2,121.904,null,128.32000000000002,null,126,null,162,null,{"$f":"SUM(I8:P8)","v":538.22400000000005}]
[null,2,"J055","LOYOLA CLAUDIA MARIA","C197","PATACON",80,null,null,130.4,null,160.19999999999999,null,128,null,80,{"$f":"SUM(J9:P9)","v":498.6}]
[null,3,"A059","ALMEIDA AYALA HECTOR ","C115","AVENTURERO",null,null,null,null,null,null,163.4,null,null,240.2,{"$f":"SUM(G10:P10)","v":403.6}]
[null,4,"A059","ALMEIDA AYALA HECTOR ","C114","KAFIR HA",null,159.6,216.36,null,null,null,null,null,null,null,{"$f":"SUM(G11:P11)","v":375.96000000000004}]
[null,5,"A046","NOBOA MAURICIO","C406","LIA",null,null,126,null,null,null,119.69999999999999,null,117.8,null,{"$f":"SUM(G12:P12)","v":363.5}]
[null,6,"A060","RECALDE JUAN JOSE","C200","MULATA",null,117.8,228.38,null,null,null,null,null,null,null,{"$f":"SUM(G13:P13)","v":346.18}]
[null,7,"A171","VELEZ MENA MARIA CONSUELO","C209","AISHA",120,null,null,87.800000000000011,null,128,null,null,null,null,{"$f":"SUM(G14:P14)","v":335.8}]
[null,8,"A064","DIEGO CASTILLO","C059","GS RASHID",null,null,null,null,65.36,null,137.6,null,129.6,null,{"$f":"SUM(G15:P15)","v":332.55999999999995}]
[null,9,"A192","LOZADA JOSE ARMANDO","C497","ABUDABI",76,null,null,130.4,115.48800000000001,null,null,null,null,null,{"$f":"SUM(G16:P16)","v":321.88800000000003}]
[null,10,"J011","LETORT BERNARDA","C046","AMARETO",null,168,null,null,null,null,146.19999999999999,null,null,null,{"$f":"SUM(G17:P17)","v":314.2}]
[null,11,"A059","ALMEIDA AYALA HECTOR","C140","SC SADIQ",144,null,null,null,null,null,null,null,145.80000000000001,null,{"$f":"SUM(G18:P18)","v":289.8}]
[null,12,"A055","WEEMAELS NATHALIE ","C413","RO EVITA",null,124,null,null,null,null,137.6,null,null,null,{"$f":"SUM(G19:P19)","v":261.60000000000002}]
[null,13,"J055","LOYOLA CLAUDIA","C407","MONARCH",null,null,128.32000000000002,null,121.904,null,null,null,null,null,{"$f":"SUM(G20:P20)","v":250.22400000000002}]
[null,14,"A033","ARMANDO SERRANO","C414","MD YALA",null,null,null,null,240.4,null,null,null,null,null,{"$f":"SUM(G21:P21)","v":240.4}]
[null,15,"A045","MORABOWEN CESAR","C329","SERENATA CMB",null,null,240.4,null,null,null,null,null,null,null,{"$f":"SUM(G22:P22)","v":240.4}]
[null,16,"A097","MALO ANDREA","C441","SANTOO",114,null,null,null,null,121.6,null,null,null,null,{"$f":"SUM(G23:P23)","v":235.6}]
[null,17,"A192","LOZADA JOSE ARMANDO","C415","GH ROSCO",null,null,null,null,null,64,null,null,null,121.60000000000001,{"$f":"SUM(G24:P24)","v":185.60000000000002}]
[null,18,"A030","DANILO MONCAYO ","C398","AR BOMBOM",null,null,null,null,null,null,61.920000000000009,null,116.64000000000001,null,{"$f":"SUM(G25:P25)","v":178.56000000000003}]
[null,19,"A033","ARMANDO SERRANO","C370","JEREZ",null,null,null,null,null,null,172,null,null,null,{"$f":"SUM(G26:P26)","v":172}]
[null,20,"A201","ALLAICO JOSE EMILIO","C004","TEQUILA",null,null,null,163,null,null,null,null,null,null,{"$f":"SUM(G27:P27)","v":163}]
[null,21,"A058","RIBADENEIRA ARTURO","C096","AR FAISAN",null,null,160.4,null,null,null,null,null,null,null,{"$f":"SUM(G28:P28)","v":160.4}]
[null,22,"A171","VELEZ MARIA CONSUELO ","C140","SC SADIQ",null,null,null,null,160.4,null,null,null,null,null,{"$f":"SUM(G29:P29)","v":160.4}]
[null,23,"A249","ANDRADE JOSE DANIEL","C072","QUITA PENAS",null,null,null,null,null,null,null,160.19999999999999,null,null,{"$f":"SUM(G30:P30)","v":160.19999999999999}]
[null,24,"A045","MORABOWEN CESAR","C229","BULERIA CMB",160,null,null,null,null,null,null,null,null,null,{"$f":"SUM(G31:P31)","v":160}]
[null,25,"A097","MALO ANDREA","C511","SHAKKIRA VO",null,null,null,154.85,null,null,null,null,null,null,{"$f":"SUM(G32:P32)","v":154.85}]
[null,26,"A045","CESAR MORABOWEN","C382","BULERIA CBM",null,null,null,null,null,null,154.80000000000001,null,null,null,{"$f":"SUM(G33:P33)","v":154.80000000000001}]
[null,27,"J034","JOSÉ DANIEL ANDRADE","C409","MONARCH",null,null,null,null,null,null,null,null,153.9,null,{"$f":"SUM(G34:P34)","v":153.9}]
[null,28,"A067","MARIO CANDO","C416","CARUZO",null,null,null,null,152.38,null,null,null,null,null,{"$f":"SUM(G35:P35)","v":152.38}]
[null,29,"A056","MORILLO MAURICIO","C411","MANDY CMB",null,null,152.38,null,null,null,null,null,null,null,{"$f":"SUM(G36:P36)","v":152.38}]
[null,30,"A092","VINTIMILLA PABLO","C343","PV RIGUEL",null,null,null,null,null,null,null,152.18999999999997,null,null,{"$f":"SUM(G37:P37)","v":152.18999999999997}]
[null,31,"A092","VINTIMILLA PABLO ","C252","BIANCA",152,null,null,null,null,null,null,null,null,null,{"$f":"SUM(G38:P38)","v":152}]
[null,32,"A249","ANDRADE JOSE DANIEL","C282","MAGIC MENES",null,null,null,146.70000000000002,null,null,null,null,null,null,{"$f":"SUM(G39:P39)","v":146.70000000000002}]
[null,33,"A035","PORTILLA FELIPE ","C204","AR ALBATSYN",null,null,null,null,144.36000000000001,null,null,null,null,null,{"$f":"SUM(G40:P40)","v":144.36000000000001}]
[null,34,"A055","WEEMAELS NATHALIE","C093","CG ALLASKI",null,null,null,null,null,null,null,144.18,null,null,{"$f":"SUM(G41:P41)","v":144.18}]
[null,35,"A302","MIGUEL MOYA","C357","ZT SADFANTDU",null,null,null,null,null,null,null,null,137.69999999999999,null,{"$f":"SUM(G42:P42)","v":137.69999999999999}]
[null,36,"A058","RIBADENEIRA ARTURO","C415","ANGOSTURA FRODO",null,null,null,null,136.34,null,null,null,null,null,{"$f":"SUM(G43:P43)","v":136.34}]
[null,37,"A165","MORABOWEN CESAR","C378","MANDI CMB",null,134.4,null,null,null,null,null,null,null,null,{"$f":"SUM(G44:P44)","v":134.4}]
[null,38,"A125","FRANCISCO FALCONI ","C241","ENSUEÑO",null,60.480000000000004,68.8,null,null,null,null,null,null,null,{"$f":"SUM(G45:P45)","v":129.28}]
[null,39,"A318","GONZALEZ XIMENA ","C419","BERNARDA",null,null,null,63.216000000000008,65.36,null,null,null,null,null,{"$f":"SUM(G46:P46)","v":128.57600000000002}]
[null,40,"A179","PAMELA MANCHENO","C217","GERONIMO",null,null,null,null,128.32000000000002,null,null,null,null,null,{"$f":"SUM(G47:P47)","v":128.32000000000002}]
[null,41,"A026","JOSE LETORT","C370","JEREZ",null,127.68,null,null,null,null,null,null,null,null,{"$f":"SUM(G48:P48)","v":127.68}]
[null,42,"A303","DAVIS JACQUELINE","C098","BOM BON",null,null,null,null,126,null,null,null,null,null,{"$f":"SUM(G49:P49)","v":126}]
[null,43,"A311","GUILLERMO CANGAS","C384","WOODY",null,null,null,null,null,null,null,null,124,null,{"$f":"SUM(G50:P50)","v":124}]
[null,44,"A236","JUNE TATE","C406","MARAVILLA",null,null,null,null,null,null,null,null,123.12,null,{"$f":"SUM(G51:P51)","v":123.12}]
[null,45,"A102","CLARK JUSTIN","C282","MAGIC MENES",null,null,115.48800000000001,null,null,null,null,null,null,null,{"$f":"SUM(G52:P52)","v":115.48800000000001}]
[null,46,"A059","ALMEIDA AYALA HECTOR","C097","CENTAURO",null,null,null,83.410000000000011,null,null,null,null,null,null,{"$f":"SUM(G53:P53)","v":83.410000000000011}]
[null,47,"A171","VELEZ MENA MARIA CONSUELO","C441","SANTOO",null,null,null,null,null,null,null,80,null,null,{"$f":"SUM(G54:P54)","v":80}]
[null,48,"A057","DAVILA JUAN DIEGO","C498","DREAMSHA",null,null,null,70.240000000000009,null,null,null,null,null,null,{"$f":"SUM(G55:P55)","v":70.240000000000009}]
[null,49,"A064","CASTILLO DIEGO ","C059","GS RASHID",null,null,null,null,68.8,null,null,null,null,null,{"$f":"SUM(G56:P56)","v":68.8}]
[null,50,"A067","MARIO CANDO","C390","MD ARAMUS",null,null,null,null,null,null,68.8,null,null,null,{"$f":"SUM(G57:P57)","v":68.8}]
[null,51,"A200","MALO DIANA","C234","EL PADRINO",null,null,null,66.728000000000009,null,null,null,null,null,null,{"$f":"SUM(G58:P58)","v":66.728000000000009}]
[null,52,"A026","JOSÉ LETORT","C151","ILUSIÓN",null,null,null,null,null,null,65.36,null,null,null,{"$f":"SUM(G59:P59)","v":65.36}]
[null,53,"A001","VINTIMILLA PAULINO","C512","SA DREAMSHA",64,null,null,null,null,null,null,null,null,null,{"$f":"SUM(G60:P60)","v":64}]
[null,54,"A257","VINTIMILLA CORDERO PABLO","C415","GH ROSCO",null,null,null,null,null,null,null,64,null,null,{"$f":"SUM(G61:P61)","v":64}]
[null,55,"A236","TATE JUNE","C388","MONTE SAU",null,63.839999999999996,null,null,null,null,null,null,null,null,{"$f":"SUM(G62:P62)","v":63.839999999999996}]
[null,56,"A315","AGUAYO JUAN PABLO ","C395","MATE",null,null,null,null,61.920000000000009,null,null,null,null,null,{"$f":"SUM(G63:P63)","v":61.920000000000009}]
[null,57,"A030","DANILO MONCAYO","C398","AR BOMBON",null,null,null,null,null,null,61.920000000000009,null,null,null,{"$f":"SUM(G64:P64)","v":61.920000000000009}]
[null,58,"A251","GONZALEZ JERVES XIMENA","C265","COMETA",null,null,null,null,null,60.800000000000004,null,null,null,null,{"$f":"SUM(G65:P65)","v":60.800000000000004}]
[null,59,"A093","GONZALEZ RENATO","C265","COMETA",null,null,null,null,null,null,null,60.800000000000004,null,null,{"$f":"SUM(G66:P66)","v":60.800000000000004}]
[null,60,"A060","JUAN JOSE RECALDE","C389","MALEIK CSE",null,null,null,null,null,null,58.48,null,null,null,{"$f":"SUM(G67:P67)","v":58.48}]
[null,61,"A242","TATE JUNE","C513","MONTE SAU",null,null,null,null,null,null,null,57.6,null,null,{"$f":"SUM(G68:P68)","v":57.6}]
[null,62,"A030","MONCAYO DANILO","C389","MALEIK CSE",null,57.12,null,null,null,null,null,null,null,null,{"$f":"SUM(G69:P69)","v":57.12}]
[null,63,"A192","LOZADA JOSE ARMANDO","C542","PV GUAPA",null,null,null,null,null,null,null,54.400000000000006,null,null,{"$f":"SUM(G70:P70)","v":54.400000000000006}]
[null,64,"A067","CANDO MARIO ","C390","MD ARAMUS",null,53.760000000000005,null,null,null,null,null,null,null,null,{"$f":"SUM(G71:P71)","v":53.760000000000005}]
[null,65,null,null,null,null,null,null,null,null,null,null,null,null,null,null,{"$f":"SUM(G72:P72)","v":0}]
[null,66,null,null,null,null,null,null,null,null,null,null,null,null,null,null,{"$f":"SUM(G73:P73)","v":0}]
[null,67,null,null,null,null,null,null,null,null,null,null,null,null,null,null,0]
[null,68,null,null,null,null,null,null,null,null,null,null,null,null,null,null,0]
[null,69,null,null,null,null,null,null,null,null,null,null,null,null,null,null,0]
[null,70,null,null,null,null,null,null,null,null,null,null,null,null,null,null,0]
[null,71,null,null,null,null,null,null,null,null,null,null,null,null,null,null,0]
[null,72,null,null,null,null,null,null,null,null,null,null,null,null,null,null,0]
[null,73,null,null,null,null,null,null,null,null,null,null,null,null,null,null,0]
[null,74,null,null,null,null,null,null,null,null,null,null,null,null,null,null,0]
[null,75,null,null,null,null,null,null,null,null,null,null,null,null,null,null,0]
[null,76,null,null,null,null,null,null,null,null,null,null,null,null,null,null,0]
[null,77,null,null,null,null,null,null,null,null,null,null,null,null,null,null,0]
[null,78,null,null,null,null,null,null,null,null,null,null,null,null,null,null,0]
[null,79,null,null,null,null,null,null,null,null,null,null,null,null,null,null,0]
[null,80,null,null,null,null,null,null,null,null,null,null,null,null,null,null,0]
[null,81,null,null,null,null,null,null,null,null,null,null,null,null,null,null,0]
[null,82,null,null,null,null,null,null,null,null,null,null,null,null,null,null,0]
[null,83,null,null,null,null,null,null,null,null,null,null,null,null,null,null,0]
[null,84,null,null,null,null,null,null,null,null,null,null,null,null,null,null,0]
[null,85,null,null,null,null,null,null,null,null,null,null,null,null,null,null,0]
[null,86,null,null,null,null,null,null,null,null,null,null,null,null,null,null,0]
[null,87,null,null,null,null,null,null,null,null,null,null,null,null,null,null,0]
[null,88,null,null,null,null,null,null,null,null,null,null,null,null,null,null,0]
[null,89,null,null,null,null,null,null,null,null,null,null,null,null,null,null,0]
[null,90,null,null,null,null,null,null,null,null,null,null,null,null,null,null,0]
[null,91,null,null,null,null,null,null,null,null,null,null,null,null,null,null,0]
[null,92,null,null,null,null,null,null,null,null,null,null,null,null,null,null,0]
[null,93,null,null,null,null,null,null,null,null,null,null,null,null,null,null,0]
[null,94,null,null,null,null,null,null,null,null,null,null,null,null,null,null,0]
[null,95,null,null,null,null,null,null,null,null,null,null,null,null,null,null,0]
[null,96,null,null,null,null,null,null,null,null,null,null,null,null,null,null,0]
[null,97,null,null,null,null,null,null,null,null,null,null,null,null,null,null,0]
[null,98,null,null,null,null,null,null,null,null,null,null,null,null,null,null,{"$f":"SUM(G105:P105)","v":0}]
[null,99,null,null,null,null,null,null,null,null,null,null,null,null,null,null,0]
[null,100,null,null,null,null,null,null,null,null,null,null,null,null,null,null,0]
[null,101,null,null,null,null,null,null,null,null,null,null,null,null,null,null,0]
[null,102,null,null,null,null,null,null,null,null,null,null,null,null,null,null,0]
[null,103,null,null,null,null,null,null,null,null,null,null,null,null,null,null,0]
[null,104,null,null,null,null,null,null,null,null,null,null,null,null,null,null,0]
[null,105,null,null,null,null,null,null,null,null,null,null,null,null,null,null,0]
[null,106,null,null,null,null,null,null,null,null,null,null,null,null,null,null,0]
[null,107,null,null,null,null,null,null,null,null,null,null,null,null,null,null,0]
[null,108,null,null,null,null,null,null,null,null,null,null,null,null,null,null,0]
[null,109,null,null,null,null,null,null,null,null,null,null,null,null,null,null,0]
[null,110,null,null,null,null,null,null,null,null,null,null,null,null,null,null,{"$f":"SUM(G117:P117)","v":0}]
[null,111,null,null,null,null,null,null,null,null,null,null,null,null,null,null,0]
[null,112,null,null,null,null,null,null,null,null,null,null,null,null,null,null,0]
[null,113,null,null,null,null,null,null,null,null,null,null,null,null,null,null,0]
[null,114,null,null,null,null,null,null,null,null,null,null,null,null,null,null,0]
[null,115,null,null,null,null,null,null,null,null,null,null,null,null,null,null,0]
[null,116,null,null,null,null,null,null,null,null,null,null,null,null,null,null,0]
[null,117,null,null,null,null,null,null,null,null,null,null,null,null,null,null,0]
[null,118,null,null,null,null,null,null,null,null,null,null,null,null,null,null,0]
[null,119,null,null,null,null,null,null,null,null,null,null,null,null,null,null,0]
[null,120,null,null,null,null,null,null,null,null,null,null,null,null,null,null,0]
[null,121,null,null,null,null,null,null,null,null,null,null,null,null,null,null,0]
[null,122,null,null,null,null,null,null,null,null,null,null,null,null,null,null,0]
[null,123,null,null,null,null,null,null,null,null,null,null,null,null,null,null,0]
[null,124,null,null,null,null,null,null,null,null,null,null,null,null,null,null,0]
[null,125,null,null,null,null,null,null,null,null,null,null,null,null,null,null,0]
[null,126,null,null,null,null,null,null,null,null,null,null,null,null,null,null,0]
[null,127,null,null,null,null,null,null,null,null,null,null,null,null,null,null,0]
[null,128,null,null,null,null,null,null,null,null,null,null,null,null,null,null,0]
[null,129,null,null,null,null,null,null,null,null,null,null,null,null,null,null,0]
[null,130,null,null,null,null,null,null,null,null,null,null,null,null,null,null,{"$f":"SUM(G137:P137)","v":0}]
[null,131,null,null,null,null,null,null,null,null,null,null,null,null,null,null,0]
[null,132,null,null,null,null,null,null,null,null,null,null,null,null,null,null,0]
[null,133,null,null,null,null,null,null,null,null,null,null,null,null,null,null,0]
[null,134,null,null,null,null,null,null,null,null,null,null,null,null,null,null,0]
[null,135,null,null,null,null,null,null,null,null,null,null,null,null,null,null,0]
[null,136,null,null,null,null,null,null,null,null,null,null,null,null,null,null,0]
[null,137,null,null,null,null,null,null,null,null,null,null,null,null,null,null,0]
[null,138,null,null,null,null,null,null,null,null,null,null,null,null,null,null,0]
[]
[]
[]
[]
[]
[]
[]
[]
[]
[]
[]
[]
[]
[]
[]
[]
[]
[]
[]
[null,null,null,null,null,null,null,null,null,null,null,null,null,{"$f":"IF(L165>=60,\"CLASIFICADO A 60 Km LIBRE y 80 Km NOVICIO\",IF(L165>=40,\"CLASIFICADO A 40 Km LIBRE y 60 Km NOVICIO\",\"\"))","v":""}]

{"sheet":"BINOMIOS LIVIANOS","index":13,"n_rows":165,"n_cols":17,"rows_kept":165,"cut":false,"hidden":false,"merged":[[1,1,1,16],[2,1,2,16],[4,1,4,3],[4,6,4,16],[5,6,5,16]]}
[]
[null,"PUNTAJE  ACUMULADO"]
[null,"CATEGORÍA BINOMIOS LIVIANOS"]
[]
[null,"BINOMIOS LIVIANOS",null,null,null,null,"PUNTAJES"]
[null,null,null,null,null,null,2017]
[null,null,"CODIGO","JINETE","CODIGO","CABALLO","I CHONE","II CHONE","III CHONE","IV CHONE","V CHONE","VI CHONE","VII CHONE","VIII CHONE","IX CHONE","X CHONE","ACUMULADO"]
[null,1,"J063","GONZALEZ BERNARDA","C232","ASRAEL",null,null,null,163,null,null,null,160.19999999999999,null,240.2,{"$f":"SUM(G8:P8)","v":563.4}]
[null,2,"M047","MORABOWEN MOSQUERA CESAR","C238","CALEÑA CMB",null,168,160.4,null,null,null,null,null,57.12,160,545.52]
[null,3,"J109","RICARDO DARQUEA","C376","NABU",null,null,null,null,121.904,null,null,null,162,null,283.904]
[null,4,"J063","GONZALES BERNARDA","C412","POLACO",null,null,240.4,null,null,null,null,null,null,null,240.4]
[null,5,"M014","MANUELA JARAMILLO","C046","AMARETO",null,null,228.38,null,null,null,null,null,null,null,228.38]
[null,6,"I004","MANUELA JARAMILLO","C394","CARRUZO",null,null,null,null,null,null,172,null,null,null,172]
[null,7,"J063","GONZALEZ BERNARDA","C333","KADIN",null,null,null,null,null,160.19999999999999,null,null,null,null,160.19999999999999]
[null,8,"J217","PEREZ SANDRO","C403","MARAVILLA",null,null,68.8,null,68.8,null,null,null,null,null,137.6]
[null,9,"J008","GOMEZ ALEXANDER","C436","TAKARI CSE",null,134.4,null,null,null,null,null,null,null,null,134.4]
[null,10,"J015","ANDRES DARQUEA","C396","LATICA BD",null,null,null,null,null,null,68.8,null,63.84,null,132.63999999999999]
[null,11,"M014","MANUELA JARAMILLO","C407","SALMA",null,null,null,null,null,null,null,null,129.6,null,129.6]
[null,12,"J101","MASAPANTA LUIS","C370","JEREZ",null,null,128.32000000000002,null,null,null,null,null,null,null,128.32000000000002]
[null,13,"A240","GONZALEZ XIMENA","C514","BERNARDA",null,null,null,null,null,null,null,null,null,128,128]
[null,14,"A242","TATE JUNE","C114","KAFIR HA",null,null,null,null,null,null,null,null,null,115.2,115.2]
[null,15,"J096","LOYOLA TEODORO ANDRES","C278","JUGUETE",null,null,null,null,null,80,null,null,null,null,80]
[null,16,"M070","ANDRADE FELIPE ANDRES","C154","SHAKIRA",null,null,null,null,null,null,null,null,null,80,80]
[null,17,"J079","JARAMILLO MANUELA","C029","MILONGA",null,67.2,null,null,null,null,null,null,null,null,67.2]
[null,18,"J019","DARQUEA RICARDO","C143","ALI",null,null,65.36,null,null,null,null,null,null,null,65.36]
[null,19,"J222","MARÍA ISABEL CALERO","C154","SHAKIRA CMB",null,null,null,null,65.36,null,null,null,null,null,65.36]
[null,20,"M070","ANDRADE FELIPE ANDRES","C532","HASAN",null,null,null,null,null,64,null,null,null,null,64]
[null,21,"M022","DAVALOS JORGE EDUARDO","C372","SHAKIRA CMB",null,null,61.920000000000009,null,null,null,null,null,null,null,61.920000000000009]
[null,22,"J104","MARIA JOSE HERNANDEZ","C401","SUMAYA BD",null,null,null,null,61.920000000000009,null,null,null,null,null,61.920000000000009]
[null,23,"J201","MARÍA ISABEL CALERO","C372","SHAKIRA CMB",null,null,null,null,null,null,null,null,60.480000000000011,null,60.480000000000011]
[null,24,"J040","DARQUEA GABRIEL","C402","KADAFY",null,null,58.48,null,null,null,null,null,null,null,58.48]
[null,25,"J104","PEREZ MARIA JOSE","C401","SUMAYA BD",null,null,55.04,null,null,null,null,null,null,null,55.04]
[null,26,null,null,null,null,null,null,null,null,null,null,null,null,null,null,{"$f":"SUM(G33:P33)","v":0}]
[null,27,null,null,null,null,null,null,null,null,null,null,null,null,null,null,0]
[null,28,null,null,null,null,null,null,null,null,null,null,null,null,null,null,0]
[null,29,null,null,null,null,null,null,null,null,null,null,null,null,null,null,0]
[null,30,null,null,null,null,null,null,null,null,null,null,null,null,null,null,0]
[null,31,null,null,null,null,null,null,null,null,null,null,null,null,null,null,0]
[null,32,null,null,null,null,null,null,null,null,null,null,null,null,null,null,0]
[null,33,null,null,null,null,null,null,null,null,null,null,null,null,null,null,0]
[null,34,null,null,null,null,null,null,null,null,null,null,null,null,null,null,0]
[null,35,null,null,null,null,null,null,null,null,null,null,null,null,null,null,0]
[null,36,null,null,null,null,null,null,null,null,null,null,null,null,null,null,0]
[null,37,null,null,null,null,null,null,null,null,null,null,null,null,null,null,0]
[null,38,null,null,null,null,null,null,null,null,null,null,null,null,null,null,0]
[null,39,null,null,null,null,null,null,null,null,null,null,null,null,null,null,0]
[null,40,null,null,null,null,null,null,null,null,null,null,null,null,null,null,0]
[null,41,null,null,null,null,null,null,null,null,null,null,null,null,null,null,0]
[null,42,null,null,null,null,null,null,null,null,null,null,null,null,null,null,0]
[null,43,null,null,null,null,null,null,null,null,null,null,null,null,null,null,0]
[null,44,null,null,null,null,null,null,null,null,null,null,null,null,null,null,0]
[null,45,null,null,null,null,null,null,null,null,null,null,null,null,null,null,0]
[null,46,null,null,null,null,null,null,null,null,null,null,null,null,null,null,{"$f":"SUM(G53:P53)","v":0}]
[null,47,null,null,null,null,null,null,null,null,null,null,null,null,null,null,0]
[null,48,null,null,null,null,null,null,null,null,null,null,null,null,null,null,0]
[null,49,null,null,null,null,null,null,null,null,null,null,null,null,null,null,0]
[null,50,null,null,null,null,null,null,null,null,null,null,null,null,null,null,0]
[null,51,null,null,null,null,null,null,null,null,null,null,null,null,null,null,0]
[null,52,null,null,null,null,null,null,null,null,null,null,null,null,null,null,0]
[null,53,null,null,null,null,null,null,null,null,null,null,null,null,null,null,0]
[null,54,null,null,null,null,null,null,null,null,null,null,null,null,null,null,0]
[null,55,null,null,null,null,null,null,null,null,null,null,null,null,null,null,0]
[null,56,null,null,null,null,null,null,null,null,null,null,null,null,null,null,0]
[null,57,null,null,null,null,null,null,null,null,null,null,null,null,null,null,0]
[null,58,null,null,null,null,null,null,null,null,null,null,null,null,null,null,0]
[null,59,null,null,null,null,null,null,null,null,null,null,null,null,null,null,0]
[null,60,null,null,null,null,null,null,null,null,null,null,null,null,null,null,0]
[null,61,null,null,null,null,null,null,null,null,null,null,null,null,null,null,0]
[null,62,null,null,null,null,null,null,null,null,null,null,null,null,null,null,0]
[null,63,null,null,null,null,null,null,null,null,null,null,null,null,null,null,0]
[null,64,null,null,null,null,null,null,null,null,null,null,null,null,null,null,{"$f":"SUM(G71:P71)","v":0}]
[null,65,null,null,null,null,null,null,null,null,null,null,null,null,null,null,0]
[null,66,null,null,null,null,null,null,null,null,null,null,null,null,null,null,0]
[null,67,null,null,null,null,null,null,null,null,null,null,null,null,null,null,0]
[null,68,null,null,null,null,null,null,null,null,null,null,null,null,null,null,0]
[null,69,null,null,null,null,null,null,null,null,null,null,null,null,null,null,0]
[null,70,null,null,null,null,null,null,null,null,null,null,null,null,null,null,0]
[null,71,null,null,null,null,null,null,null,null,null,null,null,null,null,null,0]
[null,72,null,null,null,null,null,null,null,null,null,null,null,null,null,null,0]
[null,73,null,null,null,null,null,null,null,null,null,null,null,null,null,null,0]
[null,74,null,null,null,null,null,null,null,null,null,null,null,null,null,null,0]
[null,75,null,null,null,null,null,null,null,null,null,null,null,null,null,null,0]
[null,76,null,null,null,null,null,null,null,null,null,null,null,null,null,null,0]
[null,77,null,null,null,null,null,null,null,null,null,null,null,null,null,null,0]
[null,78,null,null,null,null,null,null,null,null,null,null,null,null,null,null,0]
[null,79,null,null,null,null,null,null,null,null,null,null,null,null,null,null,0]
[null,80,null,null,null,null,null,null,null,null,null,null,null,null,null,null,0]
[null,81,null,null,null,null,null,null,null,null,null,null,null,null,null,null,0]
[null,82,null,null,null,null,null,null,null,null,null,null,null,null,null,null,0]
[null,83,null,null,null,null,null,null,null,null,null,null,null,null,null,null,0]
[null,84,null,null,null,null,null,null,null,null,null,null,null,null,null,null,0]
[null,85,null,null,null,null,null,null,null,null,null,null,null,null,null,null,0]
[null,86,null,null,null,null,null,null,null,null,null,null,null,null,null,null,0]
[null,87,null,null,null,null,null,null,null,null,null,null,null,null,null,null,0]
[null,88,null,null,null,null,null,null,null,null,null,null,null,null,null,null,0]
[null,89,null,null,null,null,null,null,null,null,null,null,null,null,null,null,0]
[null,90,null,null,null,null,null,null,null,null,null,null,null,null,null,null,0]
[null,91,null,null,null,null,null,null,null,null,null,null,null,null,null,null,0]
[null,92,null,null,null,null,null,null,null,null,null,null,null,null,null,null,0]
[null,93,null,null,null,null,null,null,null,null,null,null,null,null,null,null,0]
[null,94,null,null,null,null,null,null,null,null,null,null,null,null,null,null,0]
[null,95,null,null,null,null,null,null,null,null,null,null,null,null,null,null,0]
[null,96,null,null,null,null,null,null,null,null,null,null,null,null,null,null,0]
[null,97,null,null,null,null,null,null,null,null,null,null,null,null,null,null,0]
[null,98,null,null,null,null,null,null,null,null,null,null,null,null,null,null,0]
[null,99,null,null,null,null,null,null,null,null,null,null,null,null,null,null,0]
[null,100,null,null,null,null,null,null,null,null,null,null,null,null,null,null,0]
[null,101,null,null,null,null,null,null,null,null,null,null,null,null,null,null,0]
[null,102,null,null,null,null,null,null,null,null,null,null,null,null,null,null,0]
[null,103,null,null,null,null,null,null,null,null,null,null,null,null,null,null,0]
[null,104,null,null,null,null,null,null,null,null,null,null,null,null,null,null,0]
[null,105,null,null,null,null,null,null,null,null,null,null,null,null,null,null,0]
[null,106,null,null,null,null,null,null,null,null,null,null,null,null,null,null,0]
[null,107,null,null,null,null,null,null,null,null,null,null,null,null,null,null,0]
[null,108,null,null,null,null,null,null,null,null,null,null,null,null,null,null,0]
[null,109,null,null,null,null,null,null,null,null,null,null,null,null,null,null,0]
[null,110,null,null,null,null,null,null,null,null,null,null,null,null,null,null,0]
[null,111,null,null,null,null,null,null,null,null,null,null,null,null,null,null,0]
[null,112,null,null,null,null,null,null,null,null,null,null,null,null,null,null,0]
[null,113,null,null,null,null,null,null,null,null,null,null,null,null,null,null,0]
[null,114,null,null,null,null,null,null,null,null,null,null,null,null,null,null,0]
[null,115,null,null,null,null,null,null,null,null,null,null,null,null,null,null,0]
[null,116,null,null,null,null,null,null,null,null,null,null,null,null,null,null,0]
[null,117,null,null,null,null,null,null,null,null,null,null,null,null,null,null,0]
[null,118,null,null,null,null,null,null,null,null,null,null,null,null,null,null,0]
[null,119,null,null,null,null,null,null,null,null,null,null,null,null,null,null,0]
[null,120,null,null,null,null,null,null,null,null,null,null,null,null,null,null,0]
[null,121,null,null,null,null,null,null,null,null,null,null,null,null,null,null,0]
[null,122,null,null,null,null,null,null,null,null,null,null,null,null,null,null,0]
[null,123,null,null,null,null,null,null,null,null,null,null,null,null,null,null,0]
[null,124,null,null,null,null,null,null,null,null,null,null,null,null,null,null,0]
[null,125,null,null,null,null,null,null,null,null,null,null,null,null,null,null,0]
[null,126,null,null,null,null,null,null,null,null,null,null,null,null,null,null,0]
[null,127,null,null,null,null,null,null,null,null,null,null,null,null,null,null,0]
[null,128,null,null,null,null,null,null,null,null,null,null,null,null,null,null,{"$f":"SUM(G135:P135)","v":0}]
[null,129,null,null,null,null,null,null,null,null,null,null,null,null,null,null,0]
[null,130,null,null,null,null,null,null,null,null,null,null,null,null,null,null,0]
[null,131,null,null,null,null,null,null,null,null,null,null,null,null,null,null,0]
[null,132,null,null,null,null,null,null,null,null,null,null,null,null,null,null,0]
[null,133,null,null,null,null,null,null,null,null,null,null,null,null,null,null,0]
[null,134,null,null,null,null,null,null,null,null,null,null,null,null,null,null,0]
[null,135,null,null,null,null,null,null,null,null,null,null,null,null,null,null,0]
[null,136,null,null,null,null,null,null,null,null,null,null,null,null,null,null,0]
[null,137,null,null,null,null,null,null,null,null,null,null,null,null,null,null,0]
[null,138,null,null,null,null,null,null,null,null,null,null,null,null,null,null,0]
[]
[]
[]
[]
[]
[]
[]
[]
[]
[]
[]
[]
[]
[]
[]
[]
[]
[]
[]
[null,null,null,null,null,null,null,null,null,null,null,null,null,{"$f":"IF(L165>=60,\"CLASIFICADO A 60 Km LIBRE y 80 Km NOVICIO\",IF(L165>=40,\"CLASIFICADO A 40 Km LIBRE y 60 Km NOVICIO\",\"\"))","v":""}]

{"sheet":"PR MASTER","index":14,"n_rows":55,"n_cols":15,"rows_kept":55,"cut":false,"hidden":true,"merged":[[1,1,1,14],[2,1,2,14],[4,1,4,3],[4,4,4,14],[5,4,5,14]]}
[]
[null,"PUNTAJE  ACUMULADO"]
[null,"CATEGORÍA PROMOCIONAL ABIERTA"]
[]
[null,"PROMOCIONAL MASTER",null,null,"PUNTAJES"]
[null,null,null,null,2016]
[null,null,"CODIGO","JINETE","I CHONE","II CHONE","III CHONE","IV CHONE","V CHONE","VI CHONE","VII CHONE","VIII CHONE","IX CHONE","X CHONE","ACUMULADO"]
[null,1,null,null,null,null,null,null,null,null,null,null,null,null,{"$f":"SUM(E8:N8)","v":0}]
[null,2,null,null,null,null,null,null,null,null,null,null,null,null,0]
[null,3,null,null,null,null,null,null,null,null,null,null,null,null,0]
[null,4,null,null,null,null,null,null,null,null,null,null,null,null,0]
[null,5,null,null,null,null,null,null,null,null,null,null,null,null,0]
[null,6,null,null,null,null,null,null,null,null,null,null,null,null,0]
[null,7,null,null,null,null,null,null,null,null,null,null,null,null,0]
[null,8,null,null,null,null,null,null,null,null,null,null,null,null,0]
[null,9,null,null,null,null,null,null,null,null,null,null,null,null,0]
[null,10,null,null,null,null,null,null,null,null,null,null,null,null,0]
[null,11,null,null,null,null,null,null,null,null,null,null,null,null,0]
[null,12,null,null,null,null,null,null,null,null,null,null,null,null,0]
[null,13,null,null,null,null,null,null,null,null,null,null,null,null,0]
[null,14,null,null,null,null,null,null,null,null,null,null,null,null,0]
[null,15,null,null,null,null,null,null,null,null,null,null,null,null,{"$f":"SUM(E22:N22)","v":0}]
[null,16,null,null,null,null,null,null,null,null,null,null,null,null,0]
[null,17,null,null,null,null,null,null,null,null,null,null,null,null,0]
[null,18,null,null,null,null,null,null,null,null,null,null,null,null,0]
[null,19,null,null,null,null,null,null,null,null,null,null,null,null,0]
[null,20,null,null,null,null,null,null,null,null,null,null,null,null,0]
[null,21,null,null,null,null,null,null,null,null,null,null,null,null,0]
[null,22,null,null,null,null,null,null,null,null,null,null,null,null,0]
[null,23,null,null,null,null,null,null,null,null,null,null,null,null,0]
[null,24,null,null,null,null,null,null,null,null,null,null,null,null,0]
[null,25,null,null,null,null,null,null,null,null,null,null,null,null,0]
[null,26,null,null,null,null,null,null,null,null,null,null,null,null,0]
[null,27,null,null,null,null,null,null,null,null,null,null,null,null,0]
[null,28,null,null,null,null,null,null,null,null,null,null,null,null,0]
[]
[null,null,null,null,null,null,null,null,null,null,null,{"$f":"IF(J37>=60,\"CLASIFICADO A 60 Km LIBRE y 80 Km NOVICIO\",IF(J37>=40,\"CLASIFICADO A 40 Km LIBRE y 60 Km NOVICIO\",\"\"))","v":""}]
[]
[]
[]
[]
[]
[]
[]
[]
[]
[]
[]
[]
[]
[]
[]
[]
[]
[null,null,null,null,null,null,null,null,null,null,null,{"$f":"IF(J55>=60,\"CLASIFICADO A 60 Km LIBRE y 80 Km NOVICIO\",IF(J55>=40,\"CLASIFICADO A 40 Km LIBRE y 60 Km NOVICIO\",\"\"))","v":""}]

{"sheet":"PR ABIERTA","index":15,"n_rows":58,"n_cols":15,"rows_kept":58,"cut":false,"hidden":false,"merged":[[1,1,1,14],[2,1,2,14],[4,1,4,3],[4,4,4,14],[5,4,5,14]]}
[]
[null,"PUNTAJE  ACUMULADO"]
[null,"CATEGORÍA PROMOCIONAL ABIERTA"]
[]
[null,"PROMOCIONAL ABIERTA",null,null,"PUNTAJES"]
[null,null,null,null,2017]
[null,null,"CODIGO","JINETE","I CHONE","II CHONE","III CHONE","IV CHONE","V CHONE","VI CHONE","VII CHONE","VIII CHONE","IX CHONE","X CHONE","ACUMULADO"]
[null,1,"A197","CORO RODRIGO",null,null,65.36,null,68.8,null,61.92,null,null,null,{"$f":"SUM(E8:N8)","v":196.07999999999998}]
[null,2,"A313","MONCAYO FERNANDO",null,null,61.92,null,null,null,51.599999999999994,null,null,null,113.52]
[null,3,"A316","CONTRERAS JONATHAN",null,32,null,null,65.36,null,null,null,null,null,97.36]
[null,4,"M020","TORRES JHONATHAN",null,28.8,null,null,null,null,65.36,null,null,null,94.16]
[null,5,"A010","HIDALGO GUSTAVO",null,null,68.8,null,null,null,null,null,null,null,68.8]
[null,6,"A011","DAVID ALMEIDA",null,null,null,null,null,null,68.8,null,null,null,68.8]
[null,7,"A307","LOYOLA LEONARDO",null,67.2,null,null,null,null,null,null,null,null,67.2]
[null,8,"A021","JUAN CARLOS ALVEAR",null,null,null,null,null,null,null,null,67.2,null,67.2]
[null,9,"I019","CASTILLO DAFNE",null,63.839999999999996,null,null,null,null,null,null,null,null,63.839999999999996]
[null,10,"A309","MARÍA JOSÉ HERNANDEZ ",null,null,null,null,null,null,null,null,63.839999999999996,null,63.839999999999996]
[null,11,"A325","ALEXANDRA TABARES",null,null,null,null,61.92,null,null,null,null,null,61.92]
[null,12,"A313","JUAN PABLO AGUAYO",null,null,null,null,null,null,null,null,60.480000000000004,null,60.480000000000004]
[null,13,"J205","FRANCISCO TAMAYO",null,null,null,null,null,null,58.48,null,null,null,58.48]
[null,14,"J202","KLARIZA MENDOZA",null,null,null,null,null,null,55.04,null,null,null,55.04]
[null,15,"I019","DAFNE CASTILLO",null,null,null,null,null,null,48.16,null,null,null,48.16]
[null,16,"A308","ROSAS MARIO ",null,32,null,null,null,null,null,null,null,null,32]
[null,17,"J206","DAVID DÁVILA",null,null,null,null,null,null,32,null,null,null,32]
[null,18,"A315","LUIS RUBIO ",null,null,null,null,null,null,null,null,32,null,32]
[null,19,"M040","TAMAYO ISRAEL",null,30.4,null,null,null,null,null,null,null,null,30.4]
[null,20,"J204","JAIME GALIANO",null,null,null,null,null,null,30.4,null,null,null,30.4]
[null,21,"A321","JULIAN FLORES",null,null,null,null,null,null,null,null,30.4,null,30.4]
[null,22,"J204","JAIME GALIANO",null,null,null,null,null,null,null,null,28.8,null,28.8]
[null,23,"A315","AGUAYO JUAN PABLO",null,27.2,null,null,null,null,null,null,null,null,27.2]
[null,24,"J211","DIEGO ZURITA",null,null,null,null,null,null,null,null,27.2,null,27.2]
[null,25,"M042","AGUAYO RAFAELA",null,25.6,null,null,null,null,null,null,null,null,25.6]
[null,26,"J210","SERGIO JIMENEZ",null,null,null,null,null,null,null,null,25.6,null,25.6]
[null,27,"A314","IMBAQUINGO CARLOS",null,24,null,null,null,null,null,null,null,null,24]
[null,28,"A320","CAMILA VERA",null,null,null,null,null,null,null,null,24,null,24]
[null,29,"A318","MARÍA JOSÉ SÁNCHEZ",null,null,null,null,null,null,null,null,22.4,null,22.4]
[null,30,"A319","JOSÉ FRANCISCO ORTIZ",null,null,null,null,null,null,null,null,20.8,null,20.8]
[null,31,null,null,null,null,null,null,null,null,null,null,null,null,{"$f":"SUM(E38:N38)","v":0}]
[]
[null,null,null,null,null,null,null,null,null,null,null,{"$f":"IF(J40>=60,\"CLASIFICADO A 60 Km LIBRE y 80 Km NOVICIO\",IF(J40>=40,\"CLASIFICADO A 40 Km LIBRE y 60 Km NOVICIO\",\"\"))","v":""}]
[]
[]
[]
[]
[]
[]
[]
[]
[]
[]
[]
[]
[]
[]
[]
[]
[]
[null,null,null,null,null,null,null,null,null,null,null,{"$f":"IF(J58>=60,\"CLASIFICADO A 60 Km LIBRE y 80 Km NOVICIO\",IF(J58>=40,\"CLASIFICADO A 40 Km LIBRE y 60 Km NOVICIO\",\"\"))","v":""}]

{"sheet":"PR JUVENIL","index":16,"n_rows":50,"n_cols":15,"rows_kept":50,"cut":false,"hidden":true,"merged":[[1,1,1,14],[2,1,2,14],[4,1,4,3],[4,4,4,14],[5,4,5,14]]}
[]
[null,"PUNTAJE  ACUMULADO"]
[null,"CATEGORÍA PROMOCIONAL JUVENIL"]
[]
[null,"PROMOCIONAL JUVENIL",null,null,"PUNTAJES"]
[null,null,null,null,2016]
[null,null,"CODIGO","JINETE","I CHONE","II CHONE","III CHONE","IV CHONE","V CHONE","VI CHONE","VII CHONE","VIII CHONE","IX CHONE","X CHONE","ACUMULADO"]
[null,1,"J105","NOROÑA JORDAN",null,null,null,null,null,null,null,null,68.8,null,{"$f":"SUM(E8:N8)","v":68.8}]
[null,2,"J040","GABRIEL DARQUEA",null,null,null,null,null,null,null,null,null,68.8,68.8]
[null,3,"J116","BARBARA ESPINOZA",null,null,null,null,null,null,null,null,null,65.36,65.36]
[null,4,"J115","JHON CANDELEJO",null,null,null,null,null,null,null,null,null,32,32]
[null,5,null,null,null,null,null,null,null,null,null,null,null,null,0]
[null,6,null,null,null,null,null,null,null,null,null,null,null,null,0]
[null,7,null,null,null,null,null,null,null,null,null,null,null,null,0]
[null,8,null,null,null,null,null,null,null,null,null,null,null,null,0]
[null,9,null,null,null,null,null,null,null,null,null,null,null,null,0]
[null,10,null,null,null,null,null,null,null,null,null,null,null,null,0]
[null,11,null,null,null,null,null,null,null,null,null,null,null,null,0]
[null,12,null,null,null,null,null,null,null,null,null,null,null,null,0]
[null,13,null,null,null,null,null,null,null,null,null,null,null,null,{"$f":"SUM(E20:N20)","v":0}]
[null,14,null,null,null,null,null,null,null,null,null,null,null,null,0]
[null,15,null,null,null,null,null,null,null,null,null,null,null,null,0]
[null,16,null,null,null,null,null,null,null,null,null,null,null,null,0]
[null,17,null,null,null,null,null,null,null,null,null,null,null,null,0]
[null,18,null,null,null,null,null,null,null,null,null,null,null,null,0]
[null,19,null,null,null,null,null,null,null,null,null,null,null,null,0]
[null,20,null,null,null,null,null,null,null,null,null,null,null,null,0]
[null,21,null,null,null,null,null,null,null,null,null,null,null,null,0]
[null,22,null,null,null,null,null,null,null,null,null,null,null,null,0]
[null,23,null,null,null,null,null,null,null,null,null,null,null,null,0]
[]
[null,null,null,null,null,null,null,null,null,null,null,{"$f":"IF(J32>=60,\"CLASIFICADO A 60 Km LIBRE y 80 Km NOVICIO\",IF(J32>=40,\"CLASIFICADO A 40 Km LIBRE y 60 Km NOVICIO\",\"\"))","v":""}]
[]
[]
[]
[]
[]
[]
[]
[]
[]
[]
[]
[]
[]
[]
[]
[]
[]
[null,null,null,null,null,null,null,null,null,null,null,{"$f":"IF(J50>=60,\"CLASIFICADO A 60 Km LIBRE y 80 Km NOVICIO\",IF(J50>=40,\"CLASIFICADO A 40 Km LIBRE y 60 Km NOVICIO\",\"\"))","v":""}]

{"sheet":"PR MENORES","index":17,"n_rows":50,"n_cols":15,"rows_kept":50,"cut":false,"hidden":true,"merged":[[1,1,1,14],[2,1,2,14],[4,1,4,3],[4,4,4,14],[5,4,5,14]]}
[]
[null,"PUNTAJE  ACUMULADO"]
[null,"CATEGORÍA PROMOCIONAL MENORES"]
[]
[null,"PROMOCIONAL MENORES",null,null,"PUNTAJES"]
[null,null,null,null,2016]
[null,null,"CODIGO","JINETE","I CHONE","II CHONE","III CHONE","IV CHONE","V CHONE","VI CHONE","VII CHONE","VIII CHONE","IX CHONE","X CHONE","ACUMULADO"]
[null,1,"M028","CORREA JUAN MARTIN",null,null,null,null,null,null,null,null,28.8,32,{"$f":"SUM(E8:N8)","v":60.8}]
[null,2,"M031","ESPINOZA NATALIA",null,null,null,null,58.176000000000002,null,null,null,null,null,{"$f":"SUM(E9:N9)","v":58.176000000000002}]
[null,3,"I019","CASTILLO DAFNE",null,null,null,null,null,null,null,null,32,null,{"$f":"SUM(E10:N10)","v":32}]
[null,4,"I044","MOYA MILENA",null,null,null,null,null,null,null,null,30.4,null,{"$f":"SUM(E11:N11)","v":30.4}]
[null,5,null,null,null,null,null,null,null,null,null,null,null,null,{"$f":"SUM(E12:N12)","v":0}]
[null,6,null,null,null,null,null,null,null,null,null,null,null,null,0]
[null,7,null,null,null,null,null,null,null,null,null,null,null,null,0]
[null,8,null,null,null,null,null,null,null,null,null,null,null,null,0]
[null,9,null,null,null,null,null,null,null,null,null,null,null,null,0]
[null,10,null,null,null,null,null,null,null,null,null,null,null,null,0]
[null,11,null,null,null,null,null,null,null,null,null,null,null,null,0]
[null,12,null,null,null,null,null,null,null,null,null,null,null,null,0]
[null,13,null,null,null,null,null,null,null,null,null,null,null,null,0]
[null,14,null,null,null,null,null,null,null,null,null,null,null,null,0]
[null,15,null,null,null,null,null,null,null,null,null,null,null,null,0]
[null,16,null,null,null,null,null,null,null,null,null,null,null,null,0]
[null,17,null,null,null,null,null,null,null,null,null,null,null,null,0]
[null,18,null,null,null,null,null,null,null,null,null,null,null,null,0]
[null,19,null,null,null,null,null,null,null,null,null,null,null,null,0]
[null,20,null,null,null,null,null,null,null,null,null,null,null,null,0]
[null,21,null,null,null,null,null,null,null,null,null,null,null,null,0]
[null,22,null,null,null,null,null,null,null,null,null,null,null,null,0]
[null,23,null,null,null,null,null,null,null,null,null,null,null,null,0]
[]
[null,null,null,null,null,null,null,null,null,null,null,{"$f":"IF(J32>=60,\"CLASIFICADO A 60 Km LIBRE y 80 Km NOVICIO\",IF(J32>=40,\"CLASIFICADO A 40 Km LIBRE y 60 Km NOVICIO\",\"\"))","v":""}]
[]
[]
[]
[]
[]
[]
[]
[]
[]
[]
[]
[]
[]
[]
[]
[]
[]
[null,null,null,null,null,null,null,null,null,null,null,{"$f":"IF(J50>=60,\"CLASIFICADO A 60 Km LIBRE y 80 Km NOVICIO\",IF(J50>=40,\"CLASIFICADO A 40 Km LIBRE y 60 Km NOVICIO\",\"\"))","v":""}]

{"sheet":"PR INFANTIL","index":18,"n_rows":50,"n_cols":15,"rows_kept":50,"cut":false,"hidden":false,"merged":[[1,1,1,14],[2,1,2,14],[4,1,4,3],[4,4,4,14],[5,4,5,14]]}
[]
[null,"PUNTAJE  ACUMULADO"]
[null,"CATEGORÍA PROMOCIONAL INFANTIL"]
[]
[null,"PROMOCIONAL INFANTIL",null,null,"PUNTAJES"]
[null,null,null,null,2017]
[null,null,"CODIGO","JINETE","I CHONE","II CHONE","III CHONE","IV CHONE","V CHONE","VI CHONE","VII CHONE","VIII CHONE","IX CHONE","X CHONE","ACUMULADO"]
[null,1,"I038","DARQUEA EMILIO",null,32,null,null,32,null,null,null,67.2,null,{"$f":"SUM(E8:N8)","v":131.19999999999999}]
[null,2,"I044","MOYA MARTINA ",null,67.2,null,null,null,null,null,null,null,null,{"$f":"SUM(E9:N9)","v":67.2}]
[null,3,"I050","JULIAN NOBOA",null,null,null,null,null,null,32,null,32,null,{"$f":"SUM(E10:N10)","v":64}]
[null,4,null,null,null,null,null,null,null,null,null,null,null,null,{"$f":"SUM(E11:N11)","v":0}]
[null,5,null,null,null,null,null,null,null,null,null,null,null,null,{"$f":"SUM(E12:N12)","v":0}]
[null,6,null,null,null,null,null,null,null,null,null,null,null,null,0]
[null,7,null,null,null,null,null,null,null,null,null,null,null,null,0]
[null,8,null,null,null,null,null,null,null,null,null,null,null,null,0]
[null,9,null,null,null,null,null,null,null,null,null,null,null,null,0]
[null,10,null,null,null,null,null,null,null,null,null,null,null,null,0]
[null,11,null,null,null,null,null,null,null,null,null,null,null,null,0]
[null,12,null,null,null,null,null,null,null,null,null,null,null,null,0]
[null,13,null,null,null,null,null,null,null,null,null,null,null,null,0]
[null,14,null,null,null,null,null,null,null,null,null,null,null,null,0]
[null,15,null,null,null,null,null,null,null,null,null,null,null,null,0]
[null,16,null,null,null,null,null,null,null,null,null,null,null,null,0]
[null,17,null,null,null,null,null,null,null,null,null,null,null,null,0]
[null,18,null,null,null,null,null,null,null,null,null,null,null,null,0]
[null,19,null,null,null,null,null,null,null,null,null,null,null,null,0]
[null,20,null,null,null,null,null,null,null,null,null,null,null,null,0]
[null,21,null,null,null,null,null,null,null,null,null,null,null,null,0]
[null,22,null,null,null,null,null,null,null,null,null,null,null,null,0]
[null,23,null,null,null,null,null,null,null,null,null,null,null,null,0]
[]
[null,null,null,null,null,null,null,null,null,null,null,{"$f":"IF(J32>=60,\"CLASIFICADO A 60 Km LIBRE y 80 Km NOVICIO\",IF(J32>=40,\"CLASIFICADO A 40 Km LIBRE y 60 Km NOVICIO\",\"\"))","v":""}]
[]
[]
[]
[]
[]
[]
[]
[]
[]
[]
[]
[]
[]
[]
[]
[]
[]
[null,null,null,null,null,null,null,null,null,null,null,{"$f":"IF(J50>=60,\"CLASIFICADO A 60 Km LIBRE y 80 Km NOVICIO\",IF(J50>=40,\"CLASIFICADO A 40 Km LIBRE y 60 Km NOVICIO\",\"\"))","v":""}]

{"sheet":"PR ADULTO-MENOR","index":19,"n_rows":165,"n_cols":15,"rows_kept":165,"cut":false,"hidden":true,"merged":[[1,1,1,14],[2,1,2,14],[4,1,4,2],[4,4,4,14],[5,4,5,14]]}
[]
[null,"PUNTAJE  ACUMULADO"]
[null,"CATEGORÍA PROMOCIONAL ADULTO/MENOR"]
[]
[null,"BINOMIOS ABIERTA",null,null,"PUNTAJES"]
[null,null,null,null,2016]
[null,null,"MENOR","ADULTOS","I CHONE","II CHONE","III CHONE","IV CHONE","V CHONE","VI CHONE","VII CHONE","VIII CHONE","IX CHONE","X CHONE","ACUMULADO"]
[null,1,"CASTILLO DAFNE",null,null,null,null,null,null,null,null,null,null,null,64.64]
[null,2,"SERRANO OLIVIA",null,32.480000000000004,null,null,null,30.703999999999997,null,null,null,null,null,{"$f":"SUM(E9:N9)","v":63.183999999999997}]
[null,3,"JARA RAFAELA",null,null,null,null,null,32.32,null,null,null,null,null,32.32]
[null,4,"MOYA MARTINA",null,null,null,null,null,null,null,null,null,null,32,32]
[null,5,"CORREA DAVID",null,29.231999999999999,null,null,null,null,null,null,null,null,null,29.231999999999999]
[null,6,"DARQUEA EMILIO",null,null,null,null,null,29.088000000000001,null,null,null,null,null,29.088000000000001]
[null,7,"DIAZ DAIRA",null,27.608000000000001,null,null,null,null,null,null,null,null,null,27.608000000000001]
[null,8,"MOYA MILENA",null,21.112000000000002,null,null,null,null,null,null,null,null,null,21.112000000000002]
[null,9,null,null,null,null,null,null,null,null,null,null,null,null,{"$f":"SUM(E16:N16)","v":0}]
[null,10,null,null,null,null,null,null,null,null,null,null,null,null,0]
[null,11,null,null,null,null,null,null,null,null,null,null,null,null,0]
[null,12,null,null,null,null,null,null,null,null,null,null,null,null,0]
[null,13,null,null,null,null,null,null,null,null,null,null,null,null,0]
[null,14,null,null,null,null,null,null,null,null,null,null,null,null,0]
[null,15,null,null,null,null,null,null,null,null,null,null,null,null,0]
[null,16,null,null,null,null,null,null,null,null,null,null,null,null,0]
[null,17,null,null,null,null,null,null,null,null,null,null,null,null,0]
[null,18,null,null,null,null,null,null,null,null,null,null,null,null,0]
[null,19,null,null,null,null,null,null,null,null,null,null,null,null,0]
[null,20,null,null,null,null,null,null,null,null,null,null,null,null,0]
[null,21,null,null,null,null,null,null,null,null,null,null,null,null,0]
[null,22,null,null,null,null,null,null,null,null,null,null,null,null,0]
[null,23,null,null,null,null,null,null,null,null,null,null,null,null,0]
[null,24,null,null,null,null,null,null,null,null,null,null,null,null,0]
[null,25,null,null,null,null,null,null,null,null,null,null,null,null,0]
[null,26,null,null,null,null,null,null,null,null,null,null,null,null,0]
[null,27,null,null,null,null,null,null,null,null,null,null,null,null,0]
[null,28,null,null,null,null,null,null,null,null,null,null,null,null,0]
[null,29,null,null,null,null,null,null,null,null,null,null,null,null,0]
[null,30,null,null,null,null,null,null,null,null,null,null,null,null,0]
[null,31,null,null,null,null,null,null,null,null,null,null,null,null,0]
[null,32,null,null,null,null,null,null,null,null,null,null,null,null,0]
[null,33,null,null,null,null,null,null,null,null,null,null,null,null,0]
[null,34,null,null,null,null,null,null,null,null,null,null,null,null,0]
[null,35,null,null,null,null,null,null,null,null,null,null,null,null,0]
[null,36,null,null,null,null,null,null,null,null,null,null,null,null,0]
[null,37,null,null,null,null,null,null,null,null,null,null,null,null,0]
[null,38,null,null,null,null,null,null,null,null,null,null,null,null,0]
[null,39,null,null,null,null,null,null,null,null,null,null,null,null,0]
[null,40,null,null,null,null,null,null,null,null,null,null,null,null,0]
[null,41,null,null,null,null,null,null,null,null,null,null,null,null,0]
[null,42,null,null,null,null,null,null,null,null,null,null,null,null,0]
[null,43,null,null,null,null,null,null,null,null,null,null,null,null,0]
[null,44,null,null,null,null,null,null,null,null,null,null,null,null,0]
[null,45,null,null,null,null,null,null,null,null,null,null,null,null,0]
[null,46,null,null,null,null,null,null,null,null,null,null,null,null,0]
[null,47,null,null,null,null,null,null,null,null,null,null,null,null,0]
[null,48,null,null,null,null,null,null,null,null,null,null,null,null,0]
[null,49,null,null,null,null,null,null,null,null,null,null,null,null,0]
[null,50,null,null,null,null,null,null,null,null,null,null,null,null,0]
[null,51,null,null,null,null,null,null,null,null,null,null,null,null,0]
[null,52,null,null,null,null,null,null,null,null,null,null,null,null,0]
[null,53,null,null,null,null,null,null,null,null,null,null,null,null,0]
[null,54,null,null,null,null,null,null,null,null,null,null,null,null,0]
[null,55,null,null,null,null,null,null,null,null,null,null,null,null,0]
[null,56,null,null,null,null,null,null,null,null,null,null,null,null,0]
[null,57,null,null,null,null,null,null,null,null,null,null,null,null,0]
[null,58,null,null,null,null,null,null,null,null,null,null,null,null,0]
[null,59,null,null,null,null,null,null,null,null,null,null,null,null,{"$f":"SUM(E66:N66)","v":0}]
[null,60,null,null,null,null,null,null,null,null,null,null,null,null,0]
[null,61,null,null,null,null,null,null,null,null,null,null,null,null,0]
[null,62,null,null,null,null,null,null,null,null,null,null,null,null,0]
[null,63,null,null,null,null,null,null,null,null,null,null,null,null,0]
[null,64,null,null,null,null,null,null,null,null,null,null,null,null,0]
[null,65,null,null,null,null,null,null,null,null,null,null,null,null,0]
[null,66,null,null,null,null,null,null,null,null,null,null,null,null,0]
[null,67,null,null,null,null,null,null,null,null,null,null,null,null,{"$f":"SUM(E74:N74)","v":0}]
[null,68,null,null,null,null,null,null,null,null,null,null,null,null,0]
[null,69,null,null,null,null,null,null,null,null,null,null,null,null,0]
[null,70,null,null,null,null,null,null,null,null,null,null,null,null,0]
[null,71,null,null,null,null,null,null,null,null,null,null,null,null,0]
[null,72,null,null,null,null,null,null,null,null,null,null,null,null,0]
[null,73,null,null,null,null,null,null,null,null,null,null,null,null,0]
[null,74,null,null,null,null,null,null,null,null,null,null,null,null,0]
[null,75,null,null,null,null,null,null,null,null,null,null,null,null,0]
[null,76,null,null,null,null,null,null,null,null,null,null,null,null,0]
[null,77,null,null,null,null,null,null,null,null,null,null,null,null,0]
[null,78,null,null,null,null,null,null,null,null,null,null,null,null,0]
[null,79,null,null,null,null,null,null,null,null,null,null,null,null,0]
[null,80,null,null,null,null,null,null,null,null,null,null,null,null,0]
[null,81,null,null,null,null,null,null,null,null,null,null,null,null,0]
[null,82,null,null,null,null,null,null,null,null,null,null,null,null,0]
[null,83,null,null,null,null,null,null,null,null,null,null,null,null,0]
[null,84,null,null,null,null,null,null,null,null,null,null,null,null,0]
[null,85,null,null,null,null,null,null,null,null,null,null,null,null,0]
[null,86,null,null,null,null,null,null,null,null,null,null,null,null,0]
[null,87,null,null,null,null,null,null,null,null,null,null,null,null,0]
[null,88,null,null,null,null,null,null,null,null,null,null,null,null,0]
[null,89,null,null,null,null,null,null,null,null,null,null,null,null,0]
[null,90,null,null,null,null,null,null,null,null,null,null,null,null,0]
[null,91,null,null,null,null,null,null,null,null,null,null,null,null,0]
[null,92,null,null,null,null,null,null,null,null,null,null,null,null,0]
[null,93,null,null,null,null,null,null,null,null,null,null,null,null,0]
[null,94,null,null,null,null,null,null,null,null,null,null,null,null,0]
[null,95,null,null,null,null,null,null,null,null,null,null,null,null,0]
[null,96,null,null,null,null,null,null,null,null,null,null,null,null,0]
[null,97,null,null,null,null,null,null,null,null,null,null,null,null,0]
[null,98,null,null,null,null,null,null,null,null,null,null,null,null,0]
[null,99,null,null,null,null,null,null,null,null,null,null,null,null,0]
[null,100,null,null,null,null,null,null,null,null,null,null,null,null,0]
[null,101,null,null,null,null,null,null,null,null,null,null,null,null,0]
[null,102,null,null,null,null,null,null,null,null,null,null,null,null,0]
[null,103,null,null,null,null,null,null,null,null,null,null,null,null,0]
[null,104,null,null,null,null,null,null,null,null,null,null,null,null,0]
[null,105,null,null,null,null,null,null,null,null,null,null,null,null,0]
[null,106,null,null,null,null,null,null,null,null,null,null,null,null,0]
[null,107,null,null,null,null,null,null,null,null,null,null,null,null,0]
[null,108,null,null,null,null,null,null,null,null,null,null,null,null,0]
[null,109,null,null,null,null,null,null,null,null,null,null,null,null,0]
[null,110,null,null,null,null,null,null,null,null,null,null,null,null,0]
[null,111,null,null,null,null,null,null,null,null,null,null,null,null,0]
[null,112,null,null,null,null,null,null,null,null,null,null,null,null,0]
[null,113,null,null,null,null,null,null,null,null,null,null,null,null,0]
[null,114,null,null,null,null,null,null,null,null,null,null,null,null,0]
[null,115,null,null,null,null,null,null,null,null,null,null,null,null,0]
[null,116,null,null,null,null,null,null,null,null,null,null,null,null,0]
[null,117,null,null,null,null,null,null,null,null,null,null,null,null,0]
[null,118,null,null,null,null,null,null,null,null,null,null,null,null,0]
[null,119,null,null,null,null,null,null,null,null,null,null,null,null,0]
[null,120,null,null,null,null,null,null,null,null,null,null,null,null,0]
[null,121,null,null,null,null,null,null,null,null,null,null,null,null,0]
[null,122,null,null,null,null,null,null,null,null,null,null,null,null,0]
[null,123,null,null,null,null,null,null,null,null,null,null,null,null,0]
[null,124,null,null,null,null,null,null,null,null,null,null,null,null,0]
[null,125,null,null,null,null,null,null,null,null,null,null,null,null,0]
[null,126,null,null,null,null,null,null,null,null,null,null,null,null,0]
[null,127,null,null,null,null,null,null,null,null,null,null,null,null,0]
[null,128,null,null,null,null,null,null,null,null,null,null,null,null,0]
[null,129,null,null,null,null,null,null,null,null,null,null,null,null,0]
[null,130,null,null,null,null,null,null,null,null,null,null,null,null,0]
[null,131,null,null,null,null,null,null,null,null,null,null,null,null,{"$f":"SUM(E138:N138)","v":0}]
[null,132,null,null,null,null,null,null,null,null,null,null,null,null,0]
[null,133,null,null,null,null,null,null,null,null,null,null,null,null,0]
[null,134,null,null,null,null,null,null,null,null,null,null,null,null,0]
[null,135,null,null,null,null,null,null,null,null,null,null,null,null,0]
[null,136,null,null,null,null,null,null,null,null,null,null,null,null,0]
[null,137,null,null,null,null,null,null,null,null,null,null,null,null,0]
[null,138,null,null,null,null,null,null,null,null,null,null,null,null,0]
[]
[]
[]
[]
[]
[]
[]
[]
[]
[]
[]
[]
[]
[]
[]
[]
[]
[]
[]
[null,null,null,null,null,null,null,null,null,null,null,{"$f":"IF(J165>=60,\"CLASIFICADO A 60 Km LIBRE y 80 Km NOVICIO\",IF(J165>=40,\"CLASIFICADO A 40 Km LIBRE y 60 Km NOVICIO\",\"\"))","v":""}]